Workbook

Sheet Running Totals

Sheet Donation Averages

Sheet Income Source Analytics

Sheet Donations by Class
A41: Row Labels | B41: Count of donate_id | C41: Sum of donate_amount | D41: Average of donate_amount2
A42: 1948 | B42: 2 | C42: 150 | D42: 75
A43: 1949 | B43: 2 | C43: 150 | D43: 75
A44: 1951 | B44: 5 | C44: 277 | D44: 55.4
A45: 1955 | B45: 5 | C45: 440 | D45: 88
A46: 1956 | B46: 21 | C46: 585 | D46: 27.85714286
A47: 1957 | B47: 10 | C47: 1127 | D47: 112.7
A48: 1958 | B48: 28 | C48: 2875.58 | D48: 102.6992857
A49: 1959 | B49: 19 | C49: 1989 | D49: 104.6842105
A50: 1960 | B50: 12 | C50: 1160 | D50: 96.66666667
A51: 1962 | B51: 1 | C51: 100 | D51: 100
A52: 1963 | B52: 13 | C52: 787.63 | D52: 60.58692308
A53: 1964 | B53: 84 | C53: 6908.56 | D53: 82.2447619
A54: 1965 | B54: 15 | C54: 1120 | D54: 74.66666667
A55: 1966 | B55: 64 | C55: 5692 | D55: 88.9375
A56: 1967 | B56: 10 | C56: 915 | D56: 91.5
A57: 1968 | B57: 21 | C57: 1349.68 | D57: 64.27047619
A58: 1969 | B58: 25 | C58: 2164.07 | D58: 86.5628
A59: 1970 | B59: 1 | C59: 50 | D59: 50
A60: 1972 | B60: 1 | C60: 100 | D60: 100
A61: 1974 | B61: 1 | C61: 100 | D61: 100
A62: 1975 | B62: 27 | C62: 1708 | D62: 63.25925926
A63: 1976 | B63: 2 | C63: 50 | D63: 25
A64: 1977 | B64: 26 | C64: 1814.33 | D64: 69.78192308
A65: 1978 | B65: 26 | C65: 1425.78 | D65: 54.83769231
A66: 1979 | B66: 68 | C66: 3595.85 | D66: 52.88014706
A67: 1980 | B67: 8 | C67: 309.8 | D67: 38.725
A68: 1981 | B68: 6 | C68: 60 | D68: 10
A69: 1982 | B69: 1 | C69: 25 | D69: 25
A70: 1984 | B70: 1 | C70: 100 | D70: 100
A71: 1985 | B71: 7 | C71: 135 | D71: 19.28571429
A72: 1986 | B72: 8 | C72: 135 | D72: 16.875
A73: 1987 | B73: 9 | C73: 257 | D73: 28.55555556
A74: 1989 | B74: 12 | C74: 588.45 | D74: 49.0375
A75: 1992 | B75: 1 | C75: 100 | D75: 100
A76: 1994 | B76: 1 | C76: 100 | D76: 100
A77: 1995 | B77: 1 | C77: 50 | D77: 50
A78: 1996 | B78: 1 | C78: 25 | D78: 25
A79: 2001 | B79: 1 | C79: 100 | D79: 100
A80: 2007 | B80: 6 | C80: 60 | D80: 10
A81: 2008 | B81: 1 | C81: 40 | D81: 40
A82: 2009 | B82: 7 | C82: 170.54 | D82: 24.36285714
A83: 2011 | B83: 1 | C83: 150 | D83: 150
A84: 2012 | B84: 2 | C84: 175 | D84: 87.5
A85: 2013 | B85: 1 | C85: 75 | D85: 75
A86: 2015 | B86: 2 | C86: 550 | D86: 275
A87: 2016 | B87: 5 | C87: 165.32 | D87: 33.064
A88: 2018 | B88: 1 | C88: 300 | D88: 300
A89: 2020 | B89: 1 | C89: 50 | D89: 50
A90: (blank) | B90: 7 | C90: 354 | D90: 50.57142857
A91: Grand Total | B91: 580 | C91: 40709.59 | D91: 70.18894828

Sheet Fund Drive Budget History
A1: 8 | B1: Fall 2000 | C1: 68617
A2: 9 | B2: Spring 2001 | C2: 102827
A3: 10 | B3: Fall 2001 | C3: 95623
A4: 11 | B4: Spring 2002 | C4: 111701
A5: 12 | B5: Fall 2002 | C5: 106844
A6: 13 | B6: Spring 2003 | C6: 102871
A7: 14 | B7: Fall 2003 | C7: 98477
A8: 15 | B8: Spring 2004 | C8: 108900
A9: 16 | B9: Fall 2004 | C9: 113124
A10: 17 | B10: Spring 2005 | C10: 118619
A11: 18 | B11: Fall 2005 | C11: 111051
A12: 19 | B12: Spring 2006 | C12: 113413
A13: 20 | B13: Fall 2006 | C13: 95079
A14: 21 | B14: Spring 2007 | C14: 103994
A15: 22 | B15: Fall 2007 | C15: 116556
A16: 23 | B16: Spring 2008 | C16: 107504
A17: 24 | B17: Fall 2008 | C17: 108019
A18: 25 | B18: Spring 2009 | C18: 113444
A19: 26 | B19: Fall 2009 | C19: 109229
A20: 27 | B20: Spring 2010 | C20: 98094
A21: 28 | B21: Fall 2010 | C21: 96500
A22: 29 | B22: Spring 2011 | C22: 104010
A23: 30 | B23: Fall 2011 | C23: 98593
A24: 31 | B24: Spring 2012 | C24: 104884
A25: 32 | B25: Fall 2012 | C25: 117343
A26: 33 | B26: Spring 2013 | C26: 104622
A27: 34 | B27: Fall 2013 | C27: 97167
A28: 35 | B28: Spring 2014 | C28: 99462
A29: 36 | B29: Fall 2014 | C29: 98667
A30: 37 | B30: Spring 2015 | C30: 101357
A31: 38 | B31: Fall 2015 | C31: 99590
A32: 39 | B32: Spring 2016 | C32: 89448
A33: 40 | B33: Fall 2016 | C33: 95352
A34: 41 | B34: Spring 2017 | C34: 96226
A35: 42 | B35: Fall 2017 | C35: 92344
A36: 43 | B36: Spring 2018 | C36: 96226
A37: 44 | B37: Fall 2018 | C37: 74104
A38: 45 | B38: Spring 2019 | C38: 74493
A39: 46 | B39: Fall 2019 | C39: 75511.82
A40: 47 | B40: Spring 2020 | C40: 65854
A41: 48 | B41: Fall 2020 | C41: 45171.65
A42: 49 | B42: Spring 2021 | C42: 59014
A43: 50 | B43: Fall 2021 | C43: 52095
A44: 51 | B44: Spring 2022 | C44: 54096
A45: 52 | B45: Fall 2022 | C45: 51670
A46: 53 | B46: Spring 2023 | C46: 50252
A47: 54 | B47: Fall 2023 | C47: 48752

Sheet Tables
A1: FD56 | AP1: FD 55 | CE1: FD 54 | DT1: FD 53 | FI1: FD 52
A2: Day | B2: Date | C2: Goal | D2: Matching Grant # | E2: Matching Grant Amt | F2: Cash # | G2: Cash Amt | H2: Credit Card # | I2: Credit Card Amt | J2: PayPal # | K2: PayPal Amt | L2: Check # | M2: Check Amt | N2: Operating Budget | O2: Donations by Day | P2: Total Donations | Q2: Avg Overall Donation Amt | R2: Avg Donation/Day | S2: Average Donated Daily | T2: Daily % of Goal | U2: Daily % Matching $ | V2: Daily % Matching # | W2: Overall %Matching $ | X2: Overall % Matching # | Y2: Daily % Cash $ | Z2: Daily % Cash # | AA2: Overall % Cash $ | AB2: Overall % Cash # | AC2: Daily % CC $ | AD2: Daily % CC # | AE2: Overall % CC $ | AF2: Overall % CC # | AG2: Daily % PP $ | AH2: Daily % PP # | AI2: Overall % PP $ | AJ2: Overall % PP # | AK2: Daily % Chk $ | AL2: Daily % Chk # | AM2: Overall % Chk $ | AN2: Overall % Chk # | AP2: Day | AQ2: Date | AR2: Goal | AS2: Matching Grant # | AT2: Matching Grant Amt | AU2: Cash # | AV2: Cash Amt | AW2: Credit Card # | AX2: Credit Card Amt | AY2: PayPal # | AZ2: PayPal Amt | BA2: Check # | BB2: Check Amt | BC2: Operating Budget | BD2: Donations by Day | BE2: Total Donations | BF2: Avg Overall Donation Amt | BG2: Avg Donation/Day | BH2: Average Donated Daily | BI2: Daily % of Goal | BJ2: Daily % Matching $ | BK2: Daily % Matching # | BL2: Overall %Matching $ | BM2: Overall % Matching # | BN2: Daily % Cash $ | BO2: Daily % Cash # | BP2: Overall % Cash $ | BQ2: Overall % Cash # | BR2: Daily % CC $ | BS2: Daily % CC # | BT2: Overall % CC $ | BU2: Overall % CC # | BV2: Daily % PP $ | BW2: Daily % PP # | BX2: Overall % PP $ | BY2: Overall % PP # | BZ2: Daily % Chk $ | CA2: Daily % Chk # | CB2: Overall % Chk $ | CC2: Overall % Chk # | CE2: Day | CF2: Date | CG2: Goal | CH2: Matching Grant # | CI2: Matching Grant Amt | CJ2: Cash # | CK2: Cash Amt | CL2: Credit Card # | CM2: Credit Card Amt | CN2: PayPal # | CO2: PayPal Amt | CP2: Check # | CQ2: Check Amt | CR2: Operating Budget | CS2: Donations by Day | CT2: Total Donations | CU2: Avg Overall Donation Amt | CV2: Avg Donation/Day | CW2: Average Donated Daily | CX2: Daily % of Goal | CY2: Daily % Matching $ | CZ2: Daily % Matching # | DA2: Overall %Matching $ | DB2: Overall % Matching # | DC2: Daily % Cash $ | DD2: Daily % Cash # | DE2: Overall % Cash $ | DF2: Overall % Cash # | DG2: Daily % CC $ | DH2: Daily % CC # | DI2: Overall % CC $ | DJ2: Overall % CC # | DK2: Daily % PP $ | DL2: Daily % PP # | DM2: Overall % PP $ | DN2: Overall % PP # | DO2: Daily % Chk $ | DP2: Daily % Chk # | DQ2: Overall % Chk $ | DR2: Overall % Chk # | DT2: Day | DU2: Date | DV2: Goal | DW2: Matching Grant # | DX2: Matching Grant Amt | DY2: Cash # | DZ2: Cash Amt | EA2: Credit Card # | EB2: Credit Card Amt | EC2: PayPal # | ED2: PayPal Amt | EE2: Check # | EF2: Check Amt | EG2: Operating Budget | EH2: Donations by Day | EI2: Total Donations | EJ2: Avg Overall Donation Amt | EK2: Avg Donation/Day | EL2: Average Donated Daily | EM2: Daily % of Goal | EN2: Daily % Matching $ | EO2: Daily % Matching # | EP2: Overall %Matching $ | EQ2: Overall % Matching # | ER2: Daily % Cash $ | ES2: Daily % Cash # | ET2: Overall % Cash $ | EU2: Overall % Cash # | EV2: Daily % CC $ | EW2: Daily % CC # | EX2: Overall % CC $ | EY2: Overall % CC # | EZ2: Daily % PP $ | FA2: Daily % PP # | FB2: Overall % PP $ | FC2: Overall % PP # | FD2: Daily % Chk $ | FE2: Daily % Chk # | FF2: Overall % Chk $ | FG2: Overall % Chk # | FI2: Day | FJ2: Date | FK2: Goal | FL2: Matching Grant # | FM2: Matching Grant Amt | FN2: Cash # | FO2: Cash Amt | FP2: Credit Card # | FQ2: Credit Card Amt | FR2: PayPal # | FS2: PayPal Amt | FT2: Check # | FU2: Check Amt | FV2: Operating Budget | FW2: Donations by Day | FX2: Total Donations | FY2: Avg Overall Donation Amt | FZ2: Avg Donation/Day | GA2: Average Donated Daily | GB2: Daily % of Goal | GC2: Daily % Matching $ | GD2: Daily % Matching # | GE2: Overall %Matching $ | GF2: Overall % Matching # | GG2: Daily % Cash $ | GH2: Daily % Cash # | GI2: Overall % Cash $ | GJ2: Overall % Cash # | GK2: Daily % CC $ | GL2: Daily % CC # | GM2: Overall % CC $ | GN2: Overall % CC # | GO2: Daily % PP $ | GP2: Daily % PP # | GQ2: Overall % PP $ | GR2: Overall % PP # | GS2: Daily % Chk $ | GT2: Daily % Chk # | GU2: Overall % Chk $ | GV2: Overall % Chk #
A3: Pre-Fund Drive | C3: 40465 | D3: =COUNTIFS('Sanitized Raw Data'!$H:$H,"<"&B4,'Sanitized Raw Data'!$D:$D,"Matching Grant") -> 0 | E3: =SUMIFS('Sanitized Raw Data'!$C:$C,'Sanitized Raw Data'!$H:$H,"<"&B4,'Sanitized Raw Data'!$D:$D,"Matching Grant") -> 0 | F3: =COUNTIFS('Sanitized Raw Data'!$H:$H,"<"&B4,'Sanitized Raw Data'!$D:$D,"Cash") -> 0 | G3: =SUMIFS('Sanitized Raw Data'!$C:$C,'Sanitized Raw Data'!$H:$H,"<"&B4,'Sanitized Raw Data'!$D:$D,"Cash") -> 0 | H3: =COUNTIFS('Sanitized Raw Data'!$H:$H,"<"&B4,'Sanitized Raw Data'!$D:$D,"CC") -> 0 | I3: =SUMIFS('Sanitized Raw Data'!$C:$C,'Sanitized Raw Data'!$H:$H,"<"&B4,'Sanitized Raw Data'!$D:$D,"CC") -> 0 | J3: =COUNTIFS('Sanitized Raw Data'!$H:$H,"<"&B4,'Sanitized Raw Data'!$D:$D,"PayPal") -> 59 | K3: =SUMIFS('Sanitized Raw Data'!$C:$C,'Sanitized Raw Data'!$H:$H,"<"&B4,'Sanitized Raw Data'!$D:$D,"PayPal") -> 802.54 | L3: =COUNTIFS('Sanitized Raw Data'!$H:$H,"<"&B4,'Sanitized Raw Data'!$D:$D,"Personal Check")+COUNTIFS('Sanitized Raw Data'!$H:$H,"<"&B4,'Sanitized Raw Data'!$D:$D,"ACH Grant Deposit") -> 41 | M3: =SUMIFS('Sanitized Raw Data'!$C:$C,'Sanitized Raw Data'!$H:$H,"<"&B4,'Sanitized Raw Data'!$D:$D,"Personal Check")+SUMIFS('Sanitized Raw Data'!$C:$C,'Sanitized Raw Data'!$H:$H,"<"&B4,'Sanitized Raw Data'!$D:$D,"ACH Grant Deposit") -> 3337.58 | N3: =SUM(G3,M3,K3,I3,E3) -> 4140.12 | O3: =SUM(F3,H3,J3,L3) -> 100 | P3: =SUM(F3,L3,J3,H3,D3) -> 100 | Q3: =N3/P3 -> 41.4012 | R3: =(SUM(G3,M3,K3,I3,E3))/(SUM(F3,H3,J3,L3,D3)) -> 41.4012 | T3: =(N3/C$3) -> 0.1023136043 | U3: =E3/N3 -> 0 | V3: =D3/O3 -> 0 | W3: =E3/N3 -> 0 | X3: =D3/O3 -> 0 | Y3: =G3/N3 -> 0 | Z3: =F3/O3 -> 0 | AA3: =B3/J3 -> 0 | AB3: =F3/O3 -> 0 | AC3: =I3/N3 -> 0 | AD3: =H3/O3 -> 0 | AE3: =H3/N3 -> 0 | AF3: =H3/P3 -> 0 | AG3: =K3/N3 -> 0.1938446229 | AH3: =J3/O3 -> 0.59 | AI3: =K3/N3 -> 0.1938446229 | AJ3: =J3/P3 -> 0.59 | AK3: =M3/N3 -> 0.8061553771 | AL3: =L3/O3 -> 0.41 | AM3: =M3/N3 -> 0.8061553771 | AN3: =L3/P3 -> 0.41 | AP3: Pre-Fund Drive | AR3: 39822 | AS3: 0 | AT3: 0 | AU3: 0 | AV3: 0 | AW3: 0 | AX3: 0 | AY3: 78 | AZ3: 1229.54 | BA3: 41 | BB3: 5576.58 | BC3: 6806.12 | BD3: 119 | BE3: 119 | BF3: 57.19428571 | BG3: 57.19428571 | BI3: 0.1709135654 | BJ3: 0 | BK3: 0 | BL3: 0 | BM3: 0 | BN3: 0 | BO3: 0 | BP3: 0 | BQ3: 0 | BR3: 0 | BS3: 0 | BT3: 0 | BU3: 0 | BV3: 0.180652119 | BW3: 0.6554621849 | BX3: 0.180652119 | BY3: 0.6554621849 | BZ3: 0.819347881 | CA3: 0.3445378151 | CB3: 0.819347881 | CC3: 0.3445378151 | CE3: Pre-Fund Drive | CG3: 48752 | CH3: 1 | CI3: 50 | CJ3: 0 | CK3: 0 | CL3: 1 | CM3: 19.63 | CN3: 96 | CO3: 2408.13 | CP3: 36 | CQ3: 3986.01 | CR3: 6463.77 | CS3: 133 | CT3: 134 | CU3: 48.23708955 | CV3: 48.23708955 | CX3: 0.1325847145 | CY3: 0.007735423754 | CZ3: 0.007518796992 | DA3: 0.007735423754 | DB3: 0.007518796992 | DC3: 0 | DD3: 0 | DE3: 0 | DF3: 0 | DG3: 0.003036927366 | DH3: 0.007518796992 | DI3: 0.0001547084751 | DJ3: 0.007462686567 | DK3: 0.3725581201 | DL3: 0.7218045113 | DM3: 0.3725581201 | DN3: 0.7164179104 | DO3: 0.6166695288 | DP3: 0.2706766917 | DQ3: 0.6166695288 | DR3: 0.2686567164 | DT3: Pre-Fund Drive | DV3: 50252 | DW3: 3 | DX3: 250 | DY3: 0 | DZ3: 0 | EA3: 0 | EB3: 0 | EC3: 67 | ED3: 1235.33 | EE3: 33 | EF3: 2932.45 | EG3: 4417.78 | EH3: 100 | EI3: 103 | EJ3: 42.89106796 | EK3: 42.89106796 | EM3: 0.08791252089 | EN3: 0.05658950876 | EO3: 0.03 | EP3: 0.05658950876 | EQ3: 0.03 | ER3: 0 | ES3: 0 | ET3: 0 | EU3: 0 | EV3: 0 | EW3: 0 | EX3: 0 | EY3: 0 | EZ3: 0.2796268714 | FA3: 0.67 | FB3: 0.2796268714 | FC3: 0.6504854369 | FD3: 0.6637836198 | FE3: 0.33 | FF3: 0.6637836198 | FG3: 0.3203883495 | FI3: Pre-Fund Drive | FK3: 51670 | FL3: 4 | FM3: 255.69 | FN3: 0 | FO3: 0 | FP3: 0 | FQ3: 0 | FR3: 75 | FS3: 1575.54 | FT3: 43 | FU3: 4064.27 | FV3: 5895.5 | FW3: 118 | FX3: 122 | FY3: 48.32377049 | FZ3: 48.32377049 | GB3: 0.1140990904 | GC3: 0.04337036723 | GD3: 0.03389830508 | GE3: 0.04337036723 | GF3: 0.03389830508 | GG3: 0 | GH3: 0 | GI3: 0 | GJ3: 0 | GK3: 0 | GL3: 0 | GM3: 0 | GN3: 0 | GO3: 0.2672445085 | GP3: 0.6355932203 | GQ3: 0.2672445085 | GR3: 0.6147540984 | GS3: 0.6893851242 | GT3: 0.3644067797 | GU3: 0.6893851242 | GV3: 0.3524590164
A4: Day 1 | B4: 2024-10-07 | C4: 40465 | D4: =COUNTIFS('Sanitized Raw Data'!$H:$H,">="&$B4,'Sanitized Raw Data'!$H:$H,"<"&$B5,'Sanitized Raw Data'!$D:$D,"Matching Grant") -> 0 | E4: =SUMIFS('Sanitized Raw Data'!$C:$C,'Sanitized Raw Data'!$H:$H,">="&$B4,'Sanitized Raw Data'!$H:$H,"<"&$B5,'Sanitized Raw Data'!$D:$D,"Matching Grant") -> 0 | F4: =COUNTIFS('Sanitized Raw Data'!$H:$H,">="&$B4,'Sanitized Raw Data'!$H:$H,"<"&$B5,'Sanitized Raw Data'!$D:$D,"Cash") -> 0 | G4: =SUMIFS('Sanitized Raw Data'!$C:$C,'Sanitized Raw Data'!$H:$H,">="&$B4,'Sanitized Raw Data'!$H:$H,"<"&$B5,'Sanitized Raw Data'!$D:$D,"Cash") -> 0 | H4: =COUNTIFS('Sanitized Raw Data'!$H:$H,">="&$B4,'Sanitized Raw Data'!$H:$H,"<"&$B5,'Sanitized Raw Data'!$D:$D,"CC") -> 23 | I4: =SUMIFS('Sanitized Raw Data'!$C:$C,'Sanitized Raw Data'!$H:$H,">="&$B4,'Sanitized Raw Data'!$H:$H,"<"&$B5,'Sanitized Raw Data'!$D:$D,"CC") -> 1909.17 | J4: =COUNTIFS('Sanitized Raw Data'!$H:$H,">="&$B4,'Sanitized Raw Data'!$H:$H,"<"&$B5,'Sanitized Raw Data'!$D:$D,"PayPal") -> 5 | K4: =SUMIFS('Sanitized Raw Data'!$C:$C,'Sanitized Raw Data'!$H:$H,">="&$B4,'Sanitized Raw Data'!$H:$H,"<"&$B5,'Sanitized Raw Data'!$D:$D,"PayPal") -> 309.79 | L4: =COUNTIFS('Sanitized Raw Data'!$H:$H,">="&$B4,'Sanitized Raw Data'!$H:$H,"<"&$B5,'Sanitized Raw Data'!$D:$D,"Personal Check")+COUNTIFS('Sanitized Raw Data'!$H:$H,">="&$B4,'Sanitized Raw Data'!$H:$H,"<"&$B5,'Sanitized Raw Data'!$D:$D,"ACH Grant Deposit") -> 0 | M4: =SUMIFS('Sanitized Raw Data'!$C:$C,'Sanitized Raw Data'!$H:$H,">="&$B4,'Sanitized Raw Data'!$H:$H,"<"&$B5,'Sanitized Raw Data'!$D:$D,"Personal Check")+SUMIFS('Sanitized Raw Data'!$C:$C,'Sanitized Raw Data'!$H:$H,">="&$B4,'Sanitized Raw Data'!$H:$H,"<"&$B5,'Sanitized Raw Data'!$D:$D,"ACH Grant Deposit") -> 0 | N4: =SUM(G4,M4,K4,I4,N3,E4) -> 6359.08 | O4: =SUM(F4,H4,J4,L4,D4) -> 28 | P4: =SUM(F4,L4,J4,H4,P3,D4) -> 128 | Q4: =N4/P4 -> 49.6803125 | R4: 79.24857143 | S4: =N4/Sheet11!$A1 -> 6359.08 | T4: =(N4-N3)/C$3 -> 0.05483652539 | U4: =E4/(N4-N3) -> 0 | V4: 0 | W4: =SUM(E$3:E4)/N4 -> 0 | X4: =SUM(D$3:D4)/O4 -> 0 | Y4: =G4/(N4-N3) -> 0 | Z4: 0 | AA4: =SUM(G$3:G4)/N4 -> 0 | AB4: =SUM(F$3:F4)/O4 -> 0 | AC4: =I4/(N4-N3) -> 0.8603895519 | AD4: =H4/O4 -> 0.8214285714 | AE4: =SUM(I$3:I4)/N4 -> 0.3002273914 | AF4: =SUM(H$3:H4)/P4 -> 0.1796875 | AG4: =K4/(N4-N3) -> 0.1396104481 | AH4: =J4/O4 -> 0.1785714286 | AI4: =SUM(K$3:K4)/N4 -> 0.174919957 | AJ4: =SUM(J$3:J4)/P4 -> 0.5 | AK4: =M4/(N4-N3) -> 0 | AL4: =L4/O4 -> 0 | AM4: =SUM(M$3:M4)/N4 -> 0.5248526516 | AN4: =SUM(L$3:L4)/P4 -> 0.3203125 | AP4: Day 1 | AQ4: 2024-04-16 | AR4: 39822 | AS4: 0 | AT4: 0 | AU4: 0 | AV4: 0 | AW4: 174 | AX4: 13785.69 | AY4: 22 | AZ4: 1416 | BA4: 8 | BB4: 864.63 | BC4: 22872.44 | BD4: 204 | BE4: 323 | BF4: 70.81250774 | BG4: 78.75647059 | BH4: 22872.44 | BI4: 0.4034533675 | BJ4: 0 | BK4: 0 | BL4: 0 | BM4: 0 | BN4: 0 | BO4: 0 | BP4: 0 | BQ4: 0 | BR4: 0.8580490118 | BS4: 0.8529411765 | BT4: 0.6027205668 | BU4: 0.5386996904 | BV4: 0.08813468174 | BW4: 0.1078431373 | BX4: 0.1156649662 | BY4: 0.3095975232 | BZ4: 0.05381630641 | CA4: 0.03921568627 | CB4: 0.281614467 | CC4: 0.1517027864 | CE4: Day 1 | CF4: 2023-10-02 | CG4: 48752 | CH4: 0 | CI4: 0 | CJ4: 0 | CK4: 0 | CL4: 40 | CM4: 3194.78 | CN4: 10 | CO4: 559.47 | CP4: 3 | CQ4: 639.79 | CR4: 10857.81 | CS4: 53 | CT4: 187 | CU4: 58.06315508 | CV4: 82.90641509 | CW4: 10857.81 | CX4: 0.09013045619 | CY4: 0 | CZ4: 0 | DA4: 0.004604980194 | DB4: 0.01886792453 | DC4: 0 | DD4: 0 | DE4: 0 | DF4: 0 | DG4: 0.7270712146 | DH4: 0.7547169811 | DI4: 0.2960458877 | DJ4: 0.2192513369 | DK4: 0.1273247399 | DL4: 0.1886792453 | DM4: 0.2733147845 | DN4: 0.5668449198 | DO4: 0.1456040455 | DP4: 0.05660377358 | DQ4: 0.4260343476 | DR4: 0.2085561497 | DT4: Day 1 | DU4: 2023-04-11 | DV4: 50252 | DW4: 0 | DX4: 0 | DY4: 0 | DZ4: 0 | EA4: 17 | EB4: 1673.52 | EC4: 4 | ED4: 234 | EE4: 1 | EF4: 50 | EG4: 6375.3 | EH4: 22 | EI4: 125 | EJ4: 51.0024 | EK4: 88.97818182 | EL4: 6375.3 | EM4: 0.03895407148 | EN4: 0 | EO4: 0 | EP4: 0.03921384092 | EQ4: 0.1363636364 | ER4: 0 | ES4: 0 | ET4: 0 | EU4: 0 | EV4: 0.8549184683 | EW4: 0.7727272727 | EX4: 0.2625005882 | EY4: 0.136 | EZ4: 0.1195390085 | FA4: 0.1818181818 | FB4: 0.2304722915 | FC4: 0.568 | FD4: 0.02554252319 | FE4: 0.04545454545 | FF4: 0.4678132794 | FG4: 0.272 | FI4: Day 1 | FJ4: 2022-10-03 | FK4: 51670 | FL4: 0 | FM4: 0 | FN4: 0 | FO4: 0 | FP4: 104 | FQ4: 9077.6 | FR4: 25 | FS4: 1332.68 | FT4: 8 | FU4: 1032.79 | FV4: 17338.57 | FW4: 137 | FX4: 259 | FY4: 66.94428571 | FZ4: 83.52605839 | GA4: 17338.57 | GB4: 0.2214644862 | GC4: 0 | GD4: 0 | GE4: 0.01474689089 | GF4: 0.02919708029 | GG4: 0 | GH4: 0 | GI4: 0 | GJ4: 0 | GK4: 0.7932836206 | GL4: 0.7591240876 | GM4: 0.5235495199 | GN4: 0.4015444015 | GO4: 0.1164617537 | GP4: 0.1824817518 | GQ4: 0.1677312489 | GR4: 0.3861003861 | GS4: 0.09025462573 | GT4: 0.05839416058 | GU4: 0.2939723403 | GV4: 0.1969111969
A5: Day 2 | B5: 2024-10-08 | C5: 40465 | D5: =COUNTIFS('Sanitized Raw Data'!$H:$H,">="&$B5,'Sanitized Raw Data'!$H:$H,"<"&$B6,'Sanitized Raw Data'!$D:$D,"Matching Grant") -> 0 | E5: =SUMIFS('Sanitized Raw Data'!$C:$C,'Sanitized Raw Data'!$H:$H,">="&$B5,'Sanitized Raw Data'!$H:$H,"<"&$B6,'Sanitized Raw Data'!$D:$D,"Matching Grant") -> 0 | F5: =COUNTIFS('Sanitized Raw Data'!$H:$H,">="&$B5,'Sanitized Raw Data'!$H:$H,"<"&$B6,'Sanitized Raw Data'!$D:$D,"Cash") -> 0 | G5: =SUMIFS('Sanitized Raw Data'!$C:$C,'Sanitized Raw Data'!$H:$H,">="&$B5,'Sanitized Raw Data'!$H:$H,"<"&$B6,'Sanitized Raw Data'!$D:$D,"Cash") -> 0 | H5: =COUNTIFS('Sanitized Raw Data'!$H:$H,">="&$B5,'Sanitized Raw Data'!$H:$H,"<"&$B6,'Sanitized Raw Data'!$D:$D,"CC") -> 143 | I5: =SUMIFS('Sanitized Raw Data'!$C:$C,'Sanitized Raw Data'!$H:$H,">="&$B5,'Sanitized Raw Data'!$H:$H,"<"&$B6,'Sanitized Raw Data'!$D:$D,"CC") -> 10161.38 | J5: =COUNTIFS('Sanitized Raw Data'!$H:$H,">="&$B5,'Sanitized Raw Data'!$H:$H,"<"&$B6,'Sanitized Raw Data'!$D:$D,"PayPal") -> 14 | K5: =SUMIFS('Sanitized Raw Data'!$C:$C,'Sanitized Raw Data'!$H:$H,">="&$B5,'Sanitized Raw Data'!$H:$H,"<"&$B6,'Sanitized Raw Data'!$D:$D,"PayPal") -> 768.47 | L5: =COUNTIFS('Sanitized Raw Data'!$H:$H,">="&$B5,'Sanitized Raw Data'!$H:$H,"<"&$B6,'Sanitized Raw Data'!$D:$D,"Personal Check")+COUNTIFS('Sanitized Raw Data'!$H:$H,">="&$B5,'Sanitized Raw Data'!$H:$H,"<"&$B6,'Sanitized Raw Data'!$D:$D,"ACH Grant Deposit") -> 14 | M5: =SUMIFS('Sanitized Raw Data'!$C:$C,'Sanitized Raw Data'!$H:$H,">="&$B5,'Sanitized Raw Data'!$H:$H,"<"&$B6,'Sanitized Raw Data'!$D:$D,"Personal Check")+SUMIFS('Sanitized Raw Data'!$C:$C,'Sanitized Raw Data'!$H:$H,">="&$B5,'Sanitized Raw Data'!$H:$H,"<"&$B6,'Sanitized Raw Data'!$D:$D,"ACH Grant Deposit") -> 1461.43 | N5: =SUM(G5,M5,K5,I5,N4,E5) -> 18750.36 | O5: =SUM(F5,H5,J5,L5,D5) -> 171 | P5: =SUM(F5,L5,J5,H5,P4,D5) -> 299 | Q5: =N5/P5 -> 62.71023411 | R5: =(SUM(G5,M5,K5,I5,E5))/(SUM(F5,H5,J5,L5,D5)) -> 72.46362573 | S5: =N5/Sheet11!$A2 -> 9375.18 | T5: =(N5-N4)/C$3 -> 0.3062221673 | U5: =E5/(N5-N4) -> 0 | V5: =D5/O5 -> 0 | W5: =SUM(E$3:E5)/N5 -> 0 | X5: =SUM(D$3:D5)/O5 -> 0 | Y5: =G5/(N5-N4) -> 0 | Z5: =F5/O5 -> 0 | AA5: =SUM(G$3:G5)/N5 -> 0 | AB5: =SUM(F$3:F5)/O5 -> 0 | AC5: =I5/(N5-N4) -> 0.8200428043 | AD5: =H5/O5 -> 0.8362573099 | AE5: =SUM(I$3:I5)/N5 -> 0.6437503067 | AF5: =SUM(H$3:H5)/P5 -> 0.5551839465 | AG5: =K5/(N5-N4) -> 0.06201699905 | AH5: =J5/O5 -> 0.08187134503 | AI5: =SUM(K$3:K5)/N5 -> 0.1003074074 | AJ5: =SUM(J$3:J5)/P5 -> 0.2608695652 | AK5: =M5/(N5-N4) -> 0.1179401967 | AL5: =L5/O5 -> 0.08187134503 | AM5: =SUM(M$3:M5)/N5 -> 0.2559422859 | AN5: =SUM(L$3:L5)/P5 -> 0.1839464883 | AP5: Day 2 | AQ5: 2024-04-17 | AR5: 39822 | AS5: 0 | AT5: 0 | AU5: 0 | AV5: 0 | AW5: 66 | AX5: 4377.31 | AY5: 5 | AZ5: 234 | BA5: 3 | BB5: 250 | BC5: 27733.75 | BD5: 74 | BE5: 397 | BF5: 69.85831234 | BG5: 65.69337838 | BH5: 13866.875 | BI5: 0.1220759881 | BJ5: 0 | BK5: 0 | BL5: 0 | BM5: 0 | BN5: 0 | BO5: 0 | BP5: 0 | BQ5: 0 | BR5: 0.9004383592 | BS5: 0.8918918919 | BT5: 0.6549060261 | BU5: 0.604534005 | BV5: 0.04813517344 | BW5: 0.06756756757 | BX5: 0.1038280074 | BY5: 0.2644836272 | BZ5: 0.05142646735 | CA5: 0.04054054054 | CB5: 0.2412659666 | CC5: 0.1309823678 | CE5: Day 2 | CF5: 2023-10-03 | CG5: 48752 | CH5: 0 | CI5: 0 | CJ5: 0 | CK5: 0 | CL5: 69 | CM5: 5796.7 | CN5: 20 | CO5: 1155 | CP5: 4 | CQ5: 296 | CR5: 18105.51 | CS5: 93 | CT5: 280 | CU5: 64.66253571 | CV5: 77.93225806 | CW5: 9052.755 | CX5: 0.1486646702 | CY5: 0 | CZ5: 0 | DA5: 0.002761590256 | DB5: 0.01075268817 | DC5: 0 | DD5: 0 | DE5: 0 | DF5: 0 | DG5: 0.7997985568 | DH5: 0.7419354839 | DI5: 0.4976998715 | DJ5: 0.3928571429 | DK5: 0.1593609007 | DL5: 0.2150537634 | DM5: 0.2276986398 | DN5: 0.45 | DO5: 0.04084054252 | DP5: 0.04301075269 | DQ5: 0.2718398985 | DR5: 0.1535714286 | DT5: Day 2 | DU5: 2023-04-12 | DV5: 50252 | DW5: 0 | DX5: 0 | DY5: 0 | DZ5: 0 | EA5: 153 | EB5: 11667.58 | EC5: 38 | ED5: 1536 | EE5: 13 | EF5: 990 | EG5: 20568.88 | EH5: 204 | EI5: 329 | EJ5: 62.5193921 | EK5: 69.57637255 | EL5: 10284.44 | EM5: 0.2824480618 | EN5: 0 | EO5: 0 | EP5: 0.01215428356 | EQ5: 0.01470588235 | ER5: 0 | ES5: 0 | ET5: 0 | EU5: 0 | EV5: 0.8220322146 | EW5: 0.75 | EX5: 0.6486060495 | EY5: 0.5167173252 | EZ5: 0.1082179408 | FA5: 0.1862745098 | FB5: 0.146110532 | FC5: 0.3313069909 | FD5: 0.06974984465 | FE5: 0.0637254902 | FF5: 0.1931291349 | FG5: 0.1428571429 | FI5: Day 2 | FJ5: 2022-10-04 | FK5: 51670 | FL5: 0 | FM5: 0 | FN5: 0 | FO5: 0 | FP5: 38 | FQ5: 2696.56 | FR5: 9 | FS5: 483 | FT5: 12 | FU5: 1136.97 | FV5: 21655.1 | FW5: 59 | FX5: 318 | FY5: 68.09779874 | FZ5: 73.16152542 | GA5: 10827.55 | GB5: 0.08354035224 | GC5: 0 | GD5: 0 | GE5: 0.01180738025 | GF5: 0.06779661017 | GG5: 0 | GH5: 0 | GI5: 0 | GJ5: 0 | GK5: 0.6247054926 | GL5: 0.6440677966 | GM5: 0.5437130283 | GN5: 0.4465408805 | GO5: 0.1118954345 | GP5: 0.1525423729 | GQ5: 0.1566014472 | GR5: 0.3427672956 | GS5: 0.2633990729 | GT5: 0.2033898305 | GU5: 0.2878781442 | GV5: 0.1981132075
A6: Day 3 | B6: 2024-10-09 | C6: 40465 | D6: =COUNTIFS('Sanitized Raw Data'!$H:$H,">="&$B6,'Sanitized Raw Data'!$H:$H,"<"&$B7,'Sanitized Raw Data'!$D:$D,"Matching Grant") -> 0 | E6: =SUMIFS('Sanitized Raw Data'!$C:$C,'Sanitized Raw Data'!$H:$H,">="&$B6,'Sanitized Raw Data'!$H:$H,"<"&$B7,'Sanitized Raw Data'!$D:$D,"Matching Grant") -> 0 | F6: =COUNTIFS('Sanitized Raw Data'!$H:$H,">="&$B6,'Sanitized Raw Data'!$H:$H,"<"&$B7,'Sanitized Raw Data'!$D:$D,"Cash") -> 0 | G6: =SUMIFS('Sanitized Raw Data'!$C:$C,'Sanitized Raw Data'!$H:$H,">="&$B6,'Sanitized Raw Data'!$H:$H,"<"&$B7,'Sanitized Raw Data'!$D:$D,"Cash") -> 0 | H6: =COUNTIFS('Sanitized Raw Data'!$H:$H,">="&$B6,'Sanitized Raw Data'!$H:$H,"<"&$B7,'Sanitized Raw Data'!$D:$D,"CC") -> 20 | I6: =SUMIFS('Sanitized Raw Data'!$C:$C,'Sanitized Raw Data'!$H:$H,">="&$B6,'Sanitized Raw Data'!$H:$H,"<"&$B7,'Sanitized Raw Data'!$D:$D,"CC") -> 1175.31 | J6: =COUNTIFS('Sanitized Raw Data'!$H:$H,">="&$B6,'Sanitized Raw Data'!$H:$H,"<"&$B7,'Sanitized Raw Data'!$D:$D,"PayPal") -> 4 | K6: =SUMIFS('Sanitized Raw Data'!$C:$C,'Sanitized Raw Data'!$H:$H,">="&$B6,'Sanitized Raw Data'!$H:$H,"<"&$B7,'Sanitized Raw Data'!$D:$D,"PayPal") -> 205 | L6: =COUNTIFS('Sanitized Raw Data'!$H:$H,">="&$B6,'Sanitized Raw Data'!$H:$H,"<"&$B7,'Sanitized Raw Data'!$D:$D,"Personal Check")+COUNTIFS('Sanitized Raw Data'!$H:$H,">="&$B6,'Sanitized Raw Data'!$H:$H,"<"&$B7,'Sanitized Raw Data'!$D:$D,"ACH Grant Deposit") -> 5 | M6: =SUMIFS('Sanitized Raw Data'!$C:$C,'Sanitized Raw Data'!$H:$H,">="&$B6,'Sanitized Raw Data'!$H:$H,"<"&$B7,'Sanitized Raw Data'!$D:$D,"Personal Check")+SUMIFS('Sanitized Raw Data'!$C:$C,'Sanitized Raw Data'!$H:$H,">="&$B6,'Sanitized Raw Data'!$H:$H,"<"&$B7,'Sanitized Raw Data'!$D:$D,"ACH Grant Deposit") -> 251 | N6: 20381.67 | O6: 29 | P6: 328 | Q6: 62.1392378 | R6: 56.25206897 | S6: =N6/Sheet11!$A3 -> 6793.89 | T6: 0.0403140986 | U6: 0 | V6: 0 | W6: =SUM(E$3:E6)/N6 -> 0 | X6: =SUM(D$3:D6)/O6 -> 0 | Y6: 0 | Z6: 0 | AA6: =SUM(G$3:G6)/N6 -> 0 | AB6: =SUM(F$3:F6)/O6 -> 0 | AC6: 0.7204700517 | AD6: 0.6896551724 | AE6: =SUM(I$3:I6)/N6 -> 0.6498908088 | AF6: =SUM(H$3:H6)/P6 -> 0.5670731707 | AG6: 0.1256658759 | AH6: 0.1379310345 | AI6: =SUM(K$3:K6)/N6 -> 0.1023370509 | AJ6: =SUM(J$3:J6)/P6 -> 0.25 | AK6: 0.1538640724 | AL6: 0.1724137931 | AM6: =SUM(M$3:M6)/N6 -> 0.2477721404 | AN6: =SUM(L$3:L6)/P6 -> 0.1829268293 | AP6: Day 3 | AQ6: 2024-04-18 | AR6: 39822 | AS6: 0 | AT6: 0 | AU6: 0 | AV6: 0 | AW6: 36 | AX6: 2458.58 | AY6: 1 | AZ6: 19.79 | BA6: 2 | BB6: 94.79 | BC6: 30306.91 | BD6: 39 | BE6: 436 | BF6: 69.51126147 | BG6: 65.97846154 | BH6: 10102.30333 | BI6: 0.06461654362 | BJ6: 0 | BK6: 0 | BL6: 0 | BM6: 0 | BN6: 0 | BO6: 0 | BP6: 0 | BQ6: 0 | BR6: 0.9554710939 | BS6: 0.9230769231 | BT6: 0.6804250252 | BU6: 0.6330275229 | BV6: 0.00769093255 | BW6: 0.02564102564 | BX6: 0.09566564193 | BY6: 0.2431192661 | BZ6: 0.03683797354 | CA6: 0.05128205128 | CB6: 0.2239093329 | CC6: 0.123853211 | CE6: Day 3 | CF6: 2023-10-04 | CG6: 48752 | CH6: 0 | CI6: 0 | CJ6: 0 | CK6: 0 | CL6: 23 | CM6: 1980.77 | CN6: 6 | CO6: 283 | CP6: 4 | CQ6: 185 | CR6: 20554.28 | CS6: 33 | CT6: 313 | CU6: 65.6686262 | CV6: 74.20515152 | CW6: 6851.426667 | CX6: 0.05022911881 | CY6: 0 | CZ6: 0 | DA6: 0.002432583384 | DB6: 0.0303030303 | DC6: 0 | DD6: 0 | DE6: 0 | DF6: 0 | DG6: 0.8088836436 | DH6: 0.696969697 | DI6: 0.534773293 | DJ6: 0.4249201278 | DK6: 0.115568224 | DL6: 0.1818181818 | DM6: 0.2143397871 | DN6: 0.4217252396 | DO6: 0.07554813233 | DP6: 0.1212121212 | DQ6: 0.2484543365 | DR6: 0.1501597444 | DT6: Day 3 | DU6: 2023-04-13 | DV6: 50252 | DW6: 0 | DX6: 0 | DY6: 0 | DZ6: 0 | EA6: 26 | EB6: 1638.29 | EC6: 8 | ED6: 459.79 | EE6: 9 | EF6: 1310 | EG6: 23976.96 | EH6: 43 | EI6: 372 | EJ6: 64.45419355 | EK6: 79.25767442 | EL6: 7992.32 | EM6: 0.06781978827 | EN6: 0 | EO6: 0 | EP6: 0.01042667628 | EQ6: 0.06976744186 | ER6: 0 | ES6: 0 | ET6: 0 | EU6: 0 | EV6: 0.4807076125 | EW6: 0.6046511628 | EX6: 0.6247410014 | EY6: 0.5268817204 | EZ6: 0.1349117392 | FA6: 0.1860465116 | FB6: 0.144518738 | FC6: 0.314516129 | FD6: 0.3843806483 | FE6: 0.2093023256 | FF6: 0.2203135844 | FG6: 0.1505376344 | FI6: Day 3 | FJ6: 2022-10-05 | FK6: 51670 | FL6: 0 | FM6: 0 | FN6: 0 | FO6: 0 | FP6: 21 | FQ6: 1891.41 | FR6: 2 | FS6: 50 | FT6: 7 | FU6: 394 | FV6: 23990.51 | FW6: 30 | FX6: 348 | FY6: 68.93824713 | FZ6: 77.847 | GA6: 7996.836667 | GB6: 0.04519856783 | GC6: 0 | GD6: 0 | GE6: 0.01065796434 | GF6: 0.1333333333 | GG6: 0 | GH6: 0 | GI6: 0 | GJ6: 0 | GK6: 0.8098834894 | GL6: 0.7 | GM6: 0.5696239888 | GN6: 0.4683908046 | GO6: 0.02140951696 | GP6: 0.06666666667 | GQ6: 0.1434408856 | GR6: 0.3189655172 | GS6: 0.1687069936 | GT6: 0.2333333333 | GU6: 0.2762771613 | GV6: 0.2011494253
A7: Day 4 | B7: 2024-10-10 | C7: 40465 | D7: =COUNTIFS('Sanitized Raw Data'!$H:$H,">="&$B7,'Sanitized Raw Data'!$H:$H,"<"&$B8,'Sanitized Raw Data'!$D:$D,"Matching Grant") -> 0 | E7: =SUMIFS('Sanitized Raw Data'!$C:$C,'Sanitized Raw Data'!$H:$H,">="&$B7,'Sanitized Raw Data'!$H:$H,"<"&$B8,'Sanitized Raw Data'!$D:$D,"Matching Grant") -> 0 | F7: =COUNTIFS('Sanitized Raw Data'!$H:$H,">="&$B7,'Sanitized Raw Data'!$H:$H,"<"&$B8,'Sanitized Raw Data'!$D:$D,"Cash") -> 0 | G7: =SUMIFS('Sanitized Raw Data'!$C:$C,'Sanitized Raw Data'!$H:$H,">="&$B7,'Sanitized Raw Data'!$H:$H,"<"&$B8,'Sanitized Raw Data'!$D:$D,"Cash") -> 0 | H7: =COUNTIFS('Sanitized Raw Data'!$H:$H,">="&$B7,'Sanitized Raw Data'!$H:$H,"<"&$B8,'Sanitized Raw Data'!$D:$D,"CC") -> 18 | I7: =SUMIFS('Sanitized Raw Data'!$C:$C,'Sanitized Raw Data'!$H:$H,">="&$B7,'Sanitized Raw Data'!$H:$H,"<"&$B8,'Sanitized Raw Data'!$D:$D,"CC") -> 1622.56 | J7: =COUNTIFS('Sanitized Raw Data'!$H:$H,">="&$B7,'Sanitized Raw Data'!$H:$H,"<"&$B8,'Sanitized Raw Data'!$D:$D,"PayPal") -> 0 | K7: =SUMIFS('Sanitized Raw Data'!$C:$C,'Sanitized Raw Data'!$H:$H,">="&$B7,'Sanitized Raw Data'!$H:$H,"<"&$B8,'Sanitized Raw Data'!$D:$D,"PayPal") -> 0 | L7: =COUNTIFS('Sanitized Raw Data'!$H:$H,">="&$B7,'Sanitized Raw Data'!$H:$H,"<"&$B8,'Sanitized Raw Data'!$D:$D,"Personal Check")+COUNTIFS('Sanitized Raw Data'!$H:$H,">="&$B7,'Sanitized Raw Data'!$H:$H,"<"&$B8,'Sanitized Raw Data'!$D:$D,"ACH Grant Deposit") -> 1 | M7: =SUMIFS('Sanitized Raw Data'!$C:$C,'Sanitized Raw Data'!$H:$H,">="&$B7,'Sanitized Raw Data'!$H:$H,"<"&$B8,'Sanitized Raw Data'!$D:$D,"Personal Check")+SUMIFS('Sanitized Raw Data'!$C:$C,'Sanitized Raw Data'!$H:$H,">="&$B7,'Sanitized Raw Data'!$H:$H,"<"&$B8,'Sanitized Raw Data'!$D:$D,"ACH Grant Deposit") -> 50 | N7: 22054.23 | O7: 19 | P7: 347 | Q7: 63.55685879 | R7: 88.02947368 | S7: =N7/Sheet11!$A4 -> 5513.5575 | T7: 0.04133349808 | U7: 0 | V7: 0 | W7: =SUM(E$3:E7)/N7 -> 0 | X7: =SUM(D$3:D7)/O7 -> 0 | Y7: 0 | Z7: 0 | AA7: =SUM(G$3:G7)/N7 -> 0 | AB7: =SUM(F$3:F7)/O7 -> 0 | AC7: 0.9701057062 | AD7: 0.9473684211 | AE7: =SUM(I$3:I7)/N7 -> 0.6741754303 | AF7: =SUM(H$3:H7)/P7 -> 0.5878962536 | AG7: 0 | AH7: 0 | AI7: =SUM(K$3:K7)/N7 -> 0.09457596116 | AJ7: =SUM(J$3:J7)/P7 -> 0.2363112392 | AK7: 0.02989429378 | AL7: 0.05263157895 | AM7: =SUM(M$3:M7)/N7 -> 0.2312486085 | AN7: =SUM(L$3:L7)/P7 -> 0.1757925072 | AP7: Day 4 | AQ7: 2024-04-19 | AR7: 39822 | AS7: 0 | AT7: 0 | AU7: 0 | AV7: 0 | AW7: 38 | AX7: 3547.8 | AY7: 5 | AZ7: 258 | BA7: 3 | BB7: 214 | BC7: 34326.71 | BD7: 46 | BE7: 482 | BF7: 71.21724066 | BG7: 87.38695652 | BH7: 8581.6775 | BI7: 0.1009442017 | BJ7: 0 | BK7: 0 | BL7: 0 | BM7: 0 | BN7: 0 | BO7: 0 | BP7: 0 | BQ7: 0 | BR7: 0.8825812229 | BS7: 0.8260869565 | BT7: 0.7040983537 | BU7: 0.6514522822 | BV7: 0.06418229763 | BW7: 0.1086956522 | BX7: 0.09197881183 | BY7: 0.2302904564 | BZ7: 0.05323647943 | CA7: 0.0652173913 | CB7: 0.2039228344 | CC7: 0.1182572614 | CE7: Day 4 | CF7: 2023-10-05 | CG7: 48752 | CH7: 0 | CI7: 0 | CJ7: 0 | CK7: 0 | CL7: 34 | CM7: 2879.32 | CN7: 5 | CO7: 267 | CP7: 1 | CQ7: 51 | CR7: 23751.6 | CS7: 40 | CT7: 353 | CU7: 67.28498584 | CV7: 79.933 | CW7: 5937.9 | CX7: 0.06558336068 | CY7: 0 | CZ7: 0 | DA7: 0.002105121339 | DB7: 0.025 | DC7: 0 | DD7: 0 | DE7: 0 | DF7: 0 | DG7: 0.9005417037 | DH7: 0.85 | DI7: 0.5840111824 | DJ7: 0.4730878187 | DK7: 0.08350743748 | DL7: 0.125 | DM7: 0.1967277994 | DN7: 0.388101983 | DO7: 0.01595085884 | DP7: 0.025 | DQ7: 0.2171558969 | DR7: 0.1359773371 | DT7: Day 4 | DU7: 2023-04-14 | DV7: 50252 | DW7: 0 | DX7: 0 | DY7: 0 | DZ7: 0 | EA7: 13 | EB7: 1084.77 | EC7: 4 | ED7: 154.79 | EE7: 3 | EF7: 172 | EG7: 25388.52 | EH7: 20 | EI7: 392 | EJ7: 64.76663265 | EK7: 70.578 | EL7: 6347.13 | EM7: 0.02808962827 | EN7: 0 | EO7: 0 | EP7: 0.009846970205 | EQ7: 0.15 | ER7: 0 | ES7: 0 | ET7: 0 | EU7: 0 | EV7: 0.7684901811 | EW7: 0.65 | EX7: 0.6327332196 | EY7: 0.5331632653 | EZ7: 0.1096588172 | FA7: 0.2 | FB7: 0.1425805837 | FC7: 0.3086734694 | FD7: 0.1218510017 | FE7: 0.15 | FF7: 0.2148392265 | FG7: 0.1505102041 | FI7: Day 4 | FJ7: 2022-10-06 | FK7: 51670 | FL7: 0 | FM7: 0 | FN7: 0 | FO7: 0 | FP7: 10 | FQ7: 904 | FR7: 1 | FS7: 5 | FT7: 6 | FU7: 409.64 | FV7: 25309.15 | FW7: 17 | FX7: 365 | FY7: 69.34013699 | FZ7: 77.56705882 | GA7: 6327.2875 | GB7: 0.02552041804 | GC7: 0 | GD7: 0 | GE7: 0.01010267038 | GF7: 0.2352941176 | GG7: 0 | GH7: 0 | GI7: 0 | GJ7: 0 | GK7: 0.6855548141 | GL7: 0.5882352941 | GM7: 0.5756641373 | GN7: 0.4739726027 | GO7: 0.003791785476 | GP7: 0.05882352941 | GQ7: 0.1361649838 | GR7: 0.3068493151 | GS7: 0.3106534005 | GT7: 0.3529411765 | GU7: 0.2780682085 | GV7: 0.2082191781
A8: Day 5 | B8: 2024-10-11 | C8: 40465 | D8: =COUNTIFS('Sanitized Raw Data'!$H:$H,">="&$B8,'Sanitized Raw Data'!$H:$H,"<"&$B9,'Sanitized Raw Data'!$D:$D,"Matching Grant") -> 0 | E8: =SUMIFS('Sanitized Raw Data'!$C:$C,'Sanitized Raw Data'!$H:$H,">="&$B8,'Sanitized Raw Data'!$H:$H,"<"&$B9,'Sanitized Raw Data'!$D:$D,"Matching Grant") -> 0 | F8: =COUNTIFS('Sanitized Raw Data'!$H:$H,">="&$B8,'Sanitized Raw Data'!$H:$H,"<"&$B9,'Sanitized Raw Data'!$D:$D,"Cash") -> 0 | G8: =SUMIFS('Sanitized Raw Data'!$C:$C,'Sanitized Raw Data'!$H:$H,">="&$B8,'Sanitized Raw Data'!$H:$H,"<"&$B9,'Sanitized Raw Data'!$D:$D,"Cash") -> 0 | H8: =COUNTIFS('Sanitized Raw Data'!$H:$H,">="&$B8,'Sanitized Raw Data'!$H:$H,"<"&$B9,'Sanitized Raw Data'!$D:$D,"CC") -> 15 | I8: =SUMIFS('Sanitized Raw Data'!$C:$C,'Sanitized Raw Data'!$H:$H,">="&$B8,'Sanitized Raw Data'!$H:$H,"<"&$B9,'Sanitized Raw Data'!$D:$D,"CC") -> 1070 | J8: =COUNTIFS('Sanitized Raw Data'!$H:$H,">="&$B8,'Sanitized Raw Data'!$H:$H,"<"&$B9,'Sanitized Raw Data'!$D:$D,"PayPal") -> 3 | K8: =SUMIFS('Sanitized Raw Data'!$C:$C,'Sanitized Raw Data'!$H:$H,">="&$B8,'Sanitized Raw Data'!$H:$H,"<"&$B9,'Sanitized Raw Data'!$D:$D,"PayPal") -> 95 | L8: =COUNTIFS('Sanitized Raw Data'!$H:$H,">="&$B8,'Sanitized Raw Data'!$H:$H,"<"&$B9,'Sanitized Raw Data'!$D:$D,"Personal Check")+COUNTIFS('Sanitized Raw Data'!$H:$H,">="&$B8,'Sanitized Raw Data'!$H:$H,"<"&$B9,'Sanitized Raw Data'!$D:$D,"ACH Grant Deposit") -> 1 | M8: =SUMIFS('Sanitized Raw Data'!$C:$C,'Sanitized Raw Data'!$H:$H,">="&$B8,'Sanitized Raw Data'!$H:$H,"<"&$B9,'Sanitized Raw Data'!$D:$D,"Personal Check")+SUMIFS('Sanitized Raw Data'!$C:$C,'Sanitized Raw Data'!$H:$H,">="&$B8,'Sanitized Raw Data'!$H:$H,"<"&$B9,'Sanitized Raw Data'!$D:$D,"ACH Grant Deposit") -> 25 | N8: 23244.23 | O8: 19 | P8: 366 | Q8: 63.50882514 | R8: 62.63157895 | S8: =N8/Sheet11!$A5 -> 4648.846 | T8: 0.02940813048 | U8: 0 | V8: 0 | W8: =SUM(E$3:E8)/N8 -> 0 | X8: =SUM(D$3:D8)/O8 -> 0 | Y8: 0 | Z8: 0 | AA8: =SUM(G$3:G8)/N8 -> 0 | AB8: =SUM(F$3:F8)/O8 -> 0 | AC8: 0.8991596639 | AD8: 0.7894736842 | AE8: =SUM(I$3:I8)/N8 -> 0.6856936108 | AF8: =SUM(H$3:H8)/P8 -> 0.5983606557 | AG8: 0.07983193277 | AH8: 0.1578947368 | AI8: =SUM(K$3:K8)/N8 -> 0.09382113324 | AJ8: =SUM(J$3:J8)/P8 -> 0.2322404372 | AK8: 0.02100840336 | AL8: 0.05263157895 | AM8: =SUM(M$3:M8)/N8 -> 0.2204852559 | AN8: =SUM(L$3:L8)/P8 -> 0.1693989071 | AP8: Day 5 | AQ8: 2024-04-20 | AR8: 39822 | AS8: 0 | AT8: 0 | AU8: 0 | AV8: 0 | AW8: 24 | AX8: 1741.79 | AY8: 0 | AZ8: 0 | BA8: 3 | BB8: 739 | BC8: 36807.5 | BD8: 27 | BE8: 509 | BF8: 72.31335953 | BG8: 91.88111111 | BH8: 7361.5 | BI8: 0.06229697152 | BJ8: 0 | BK8: 0 | BL8: 0 | BM8: 0 | BN8: 0 | BO8: 0 | BP8: 0 | BQ8: 0 | BR8: 0.7021110211 | BS8: 0.8888888889 | BT8: 0.7039644094 | BU8: 0.6640471513 | BV8: 0 | BW8: 0 | BX8: 0.08577952863 | BY8: 0.2180746562 | BZ8: 0.2978889789 | CA8: 0.1111111111 | CB8: 0.2102560619 | CC8: 0.1178781925 | CE8: Day 5 | CF8: 2023-10-06 | CG8: 48752 | CH8: 0 | CI8: 0 | CJ8: 0 | CK8: 0 | CL8: 10 | CM8: 678.54 | CN8: 2 | CO8: 115 | CP8: 3 | CQ8: 216 | CR8: 24761.14 | CS8: 15 | CT8: 368 | CU8: 67.28570652 | CV8: 67.30266667 | CW8: 4952.228 | CX8: 0.02070766328 | CY8: 0 | CZ8: 0 | DA8: 0.002019293134 | DB8: 0.06666666667 | DC8: 0 | DD8: 0 | DE8: 0 | DF8: 0 | DG8: 0.6721278998 | DH8: 0.6666666667 | DI8: 0.5876038018 | DJ8: 0.4809782609 | DK8: 0.1139132674 | DL8: 0.1333333333 | DM8: 0.1933513562 | DN8: 0.3777173913 | DO8: 0.2139588327 | DP8: 0.2 | DQ8: 0.2170255489 | DR8: 0.1385869565 | DT8: Day 5 | DU8: 2023-04-15 | DV8: 50252 | DW8: 0 | DX8: 0 | DY8: 0 | DZ8: 0 | EA8: 30 | EB8: 1733.16 | EC8: 3 | ED8: 144.77 | EE8: 5 | EF8: 285.77 | EG8: 27552.22 | EH8: 38 | EI8: 430 | EJ8: 64.07493023 | EK8: 56.93947368 | EL8: 5510.444 | EM8: 0.04305699276 | EN8: 0 | EO8: 0 | EP8: 0.009073678999 | EQ8: 0.07894736842 | ER8: 0 | ES8: 0 | ET8: 0 | EU8: 0 | EV8: 0.8010167768 | EW8: 0.7894736842 | EX8: 0.6459486749 | EY8: 0.5558139535 | EZ8: 0.0669085363 | FA8: 0.07894736842 | FB8: 0.1366379914 | FC8: 0.288372093 | FD8: 0.1320746869 | FE8: 0.1315789474 | FF8: 0.2083396547 | FG8: 0.1488372093 | FI8: Day 5 | FJ8: 2022-10-07 | FK8: 51670 | FL8: 0 | FM8: 0 | FN8: 0 | FO8: 0 | FP8: 5 | FQ8: 300 | FR8: 1 | FS8: 50 | FT8: 0 | FU8: 0 | FV8: 25659.15 | FW8: 6 | FX8: 371 | FY8: 69.16212938 | FZ8: 58.33333333 | GA8: 5131.83 | GB8: 0.006773756532 | GC8: 0 | GD8: 0 | GE8: 0.009964866334 | GF8: 0.6666666667 | GG8: 0 | GH8: 0 | GI8: 0 | GJ8: 0 | GK8: 0.8571428571 | GL8: 0.8333333333 | GM8: 0.5795036079 | GN8: 0.4797843666 | GO8: 0.1428571429 | GP8: 0.1666666667 | GQ8: 0.1362562673 | GR8: 0.3045822102 | GS8: 0 | GT8: 0 | GU8: 0.2742752585 | GV8: 0.204851752
A9: Day 6 | B9: 2024-10-12 | C9: 40465 | D9: =COUNTIFS('Sanitized Raw Data'!$H:$H,">="&$B9,'Sanitized Raw Data'!$H:$H,"<"&$B10,'Sanitized Raw Data'!$D:$D,"Matching Grant") -> 0 | E9: =SUMIFS('Sanitized Raw Data'!$C:$C,'Sanitized Raw Data'!$H:$H,">="&$B9,'Sanitized Raw Data'!$H:$H,"<"&$B10,'Sanitized Raw Data'!$D:$D,"Matching Grant") -> 0 | F9: =COUNTIFS('Sanitized Raw Data'!$H:$H,">="&$B9,'Sanitized Raw Data'!$H:$H,"<"&$B10,'Sanitized Raw Data'!$D:$D,"Cash") -> 0 | G9: =SUMIFS('Sanitized Raw Data'!$C:$C,'Sanitized Raw Data'!$H:$H,">="&$B9,'Sanitized Raw Data'!$H:$H,"<"&$B10,'Sanitized Raw Data'!$D:$D,"Cash") -> 0 | H9: =COUNTIFS('Sanitized Raw Data'!$H:$H,">="&$B9,'Sanitized Raw Data'!$H:$H,"<"&$B10,'Sanitized Raw Data'!$D:$D,"CC") -> 30 | I9: =SUMIFS('Sanitized Raw Data'!$C:$C,'Sanitized Raw Data'!$H:$H,">="&$B9,'Sanitized Raw Data'!$H:$H,"<"&$B10,'Sanitized Raw Data'!$D:$D,"CC") -> 2715 | J9: =COUNTIFS('Sanitized Raw Data'!$H:$H,">="&$B9,'Sanitized Raw Data'!$H:$H,"<"&$B10,'Sanitized Raw Data'!$D:$D,"PayPal") -> 3 | K9: =SUMIFS('Sanitized Raw Data'!$C:$C,'Sanitized Raw Data'!$H:$H,">="&$B9,'Sanitized Raw Data'!$H:$H,"<"&$B10,'Sanitized Raw Data'!$D:$D,"PayPal") -> 192 | L9: =COUNTIFS('Sanitized Raw Data'!$H:$H,">="&$B9,'Sanitized Raw Data'!$H:$H,"<"&$B10,'Sanitized Raw Data'!$D:$D,"Personal Check")+COUNTIFS('Sanitized Raw Data'!$H:$H,">="&$B9,'Sanitized Raw Data'!$H:$H,"<"&$B10,'Sanitized Raw Data'!$D:$D,"ACH Grant Deposit") -> 0 | M9: =SUMIFS('Sanitized Raw Data'!$C:$C,'Sanitized Raw Data'!$H:$H,">="&$B9,'Sanitized Raw Data'!$H:$H,"<"&$B10,'Sanitized Raw Data'!$D:$D,"Personal Check")+SUMIFS('Sanitized Raw Data'!$C:$C,'Sanitized Raw Data'!$H:$H,">="&$B9,'Sanitized Raw Data'!$H:$H,"<"&$B10,'Sanitized Raw Data'!$D:$D,"ACH Grant Deposit") -> 0 | N9: 26151.23 | O9: 33 | P9: 399 | Q9: 65.54192982 | R9: 88.09090909 | S9: =N9/Sheet11!$A6 -> 4358.538333 | T9: 0.07183986161 | U9: 0 | V9: 0 | W9: =SUM(E$3:E9)/N9 -> 0 | X9: =SUM(D$3:D9)/O9 -> 0 | Y9: 0 | Z9: 0 | AA9: =SUM(G$3:G9)/N9 -> 0 | AB9: =SUM(F$3:F9)/O9 -> 0 | AC9: 0.9339525284 | AD9: 0.9090909091 | AE9: =SUM(I$3:I9)/N9 -> 0.71329035 | AF9: =SUM(H$3:H9)/P9 -> 0.6240601504 | AG9: 0.06604747162 | AH9: 0.09090909091 | AI9: =SUM(K$3:K9)/N9 -> 0.09073378193 | AJ9: =SUM(J$3:J9)/P9 -> 0.2205513784 | AK9: 0 | AL9: 0 | AM9: =SUM(M$3:M9)/N9 -> 0.1959758681 | AN9: =SUM(L$3:L9)/P9 -> 0.1553884712 | AP9: Day 6 | AQ9: 2024-04-21 | AR9: 39822 | AS9: 0 | AT9: 0 | AU9: 0 | AV9: 0 | AW9: 9 | AX9: 986 | AY9: 3 | AZ9: 89.78 | BA9: 0 | BB9: 0 | BC9: 37883.28 | BD9: 12 | BE9: 521 | BF9: 72.71262956 | BG9: 89.64833333 | BH9: 6313.88 | BI9: 0.02701471548 | BJ9: 0 | BK9: 0 | BL9: 0 | BM9: 0 | BN9: 0 | BO9: 0 | BP9: 0 | BQ9: 0 | BR9: 0.9165442749 | BS9: 0.75 | BT9: 0.7100010876 | BU9: 0.6660268714 | BV9: 0.08345572515 | BW9: 0.25 | BX9: 0.08571353906 | BY9: 0.2188099808 | BZ9: 0 | CA9: 0 | CB9: 0.2042853734 | CC9: 0.1151631478 | CE9: Day 6 | CF9: 2023-10-07 | CG9: 48752 | CH9: 0 | CI9: 0 | CJ9: 0 | CK9: 0 | CL9: 6 | CM9: 264.54 | CN9: 1 | CO9: 24 | CP9: 1 | CQ9: 64 | CR9: 25113.68 | CS9: 8 | CT9: 376 | CU9: 66.79170213 | CV9: 44.0675 | CW9: 4185.613333 | CX9: 0.007231293075 | CY9: 0 | CZ9: 0 | DA9: 0.001990946767 | DB9: 0.125 | DC9: 0 | DD9: 0 | DE9: 0 | DF9: 0 | DG9: 0.7503829353 | DH9: 0.75 | DI9: 0.5898888574 | DJ9: 0.4867021277 | DK9: 0.06807738129 | DL9: 0.125 | DM9: 0.1915927893 | DN9: 0.3723404255 | DO9: 0.1815396834 | DP9: 0.125 | DQ9: 0.2165274066 | DR9: 0.1382978723 | DT9: Day 6 | DU9: 2023-04-16 | DV9: 50252 | DW9: 0 | DX9: 0 | DY9: 0 | DZ9: 0 | EA9: 13 | EB9: 837.97 | EC9: 1 | ED9: 100 | EE9: 0 | EF9: 0 | EG9: 28490.19 | EH9: 14 | EI9: 444 | EJ9: 64.16709459 | EK9: 66.99785714 | EL9: 4748.365 | EM9: 0.01866532675 | EN9: 0 | EO9: 0 | EP9: 0.008774950255 | EQ9: 0.2142857143 | ER9: 0 | ES9: 0 | ET9: 0 | EU9: 0 | EV9: 0.8933867821 | EW9: 0.9285714286 | EX9: 0.6540949709 | EY9: 0.5675675676 | EZ9: 0.1066132179 | FA9: 0.07142857143 | FB9: 0.135649499 | FC9: 0.2815315315 | FD9: 0 | FE9: 0 | FF9: 0.2014805798 | FG9: 0.1441441441 | FI9: Day 6 | FJ9: 2022-10-08 | FK9: 51670 | FL9: 0 | FM9: 0 | FN9: 0 | FO9: 0 | FP9: 3 | FQ9: 125 | FR9: 0 | FS9: 0 | FT9: 1 | FU9: 55 | FV9: 25839.15 | FW9: 4 | FX9: 375 | FY9: 68.9044 | FZ9: 45 | GA9: 4306.525 | GB9: 0.003483646216 | GC9: 0 | GD9: 0 | GE9: 0.009895449347 | GF9: 1 | GG9: 0 | GH9: 0 | GI9: 0 | GJ9: 0 | GK9: 0.6944444444 | GL9: 0.75 | GM9: 0.5803043057 | GN9: 0.4826666667 | GO9: 0 | GP9: 0 | GQ9: 0.1353070825 | GR9: 0.3013333333 | GS9: 0.3055555556 | GT9: 0.25 | GU9: 0.2744931625 | GV9: 0.2053333333
A10: Day 7 | B10: 2024-10-13 | C10: 40465 | D10: =COUNTIFS('Sanitized Raw Data'!$H:$H,">="&$B10,'Sanitized Raw Data'!$H:$H,"<"&$B11,'Sanitized Raw Data'!$D:$D,"Matching Grant") -> 0 | E10: =SUMIFS('Sanitized Raw Data'!$C:$C,'Sanitized Raw Data'!$H:$H,">="&$B10,'Sanitized Raw Data'!$H:$H,"<"&$B11,'Sanitized Raw Data'!$D:$D,"Matching Grant") -> 0 | F10: =COUNTIFS('Sanitized Raw Data'!$H:$H,">="&$B10,'Sanitized Raw Data'!$H:$H,"<"&$B11,'Sanitized Raw Data'!$D:$D,"Cash") -> 0 | G10: =SUMIFS('Sanitized Raw Data'!$C:$C,'Sanitized Raw Data'!$H:$H,">="&$B10,'Sanitized Raw Data'!$H:$H,"<"&$B11,'Sanitized Raw Data'!$D:$D,"Cash") -> 0 | H10: =COUNTIFS('Sanitized Raw Data'!$H:$H,">="&$B10,'Sanitized Raw Data'!$H:$H,"<"&$B11,'Sanitized Raw Data'!$D:$D,"CC") -> 12 | I10: =SUMIFS('Sanitized Raw Data'!$C:$C,'Sanitized Raw Data'!$H:$H,">="&$B10,'Sanitized Raw Data'!$H:$H,"<"&$B11,'Sanitized Raw Data'!$D:$D,"CC") -> 811.43 | J10: =COUNTIFS('Sanitized Raw Data'!$H:$H,">="&$B10,'Sanitized Raw Data'!$H:$H,"<"&$B11,'Sanitized Raw Data'!$D:$D,"PayPal") -> 1 | K10: =SUMIFS('Sanitized Raw Data'!$C:$C,'Sanitized Raw Data'!$H:$H,">="&$B10,'Sanitized Raw Data'!$H:$H,"<"&$B11,'Sanitized Raw Data'!$D:$D,"PayPal") -> 100 | L10: =COUNTIFS('Sanitized Raw Data'!$H:$H,">="&$B10,'Sanitized Raw Data'!$H:$H,"<"&$B11,'Sanitized Raw Data'!$D:$D,"Personal Check")+COUNTIFS('Sanitized Raw Data'!$H:$H,">="&$B10,'Sanitized Raw Data'!$H:$H,"<"&$B11,'Sanitized Raw Data'!$D:$D,"ACH Grant Deposit") -> 0 | M10: =SUMIFS('Sanitized Raw Data'!$C:$C,'Sanitized Raw Data'!$H:$H,">="&$B10,'Sanitized Raw Data'!$H:$H,"<"&$B11,'Sanitized Raw Data'!$D:$D,"Personal Check")+SUMIFS('Sanitized Raw Data'!$C:$C,'Sanitized Raw Data'!$H:$H,">="&$B10,'Sanitized Raw Data'!$H:$H,"<"&$B11,'Sanitized Raw Data'!$D:$D,"ACH Grant Deposit") -> 0 | N10: =SUM(G10,M10,K10,I10,N9,E10) -> 27062.66 | O10: =SUM(F10,H10,J10,L10,D10) -> 13 | P10: =SUM(F10,L10,J10,H10,P9,D10) -> 412 | Q10: =N10/P10 -> 65.68606796 | R10: =(SUM(G10,M10,K10,I10,E10))/(SUM(F10,H10,J10,L10,D10)) -> 70.11 | S10: =N10/Sheet11!$A7 -> 3866.094286 | T10: =(N10-N9)/C$3 -> 0.02252390955 | U10: =E10/(N10-N9) -> 0 | V10: =D10/O10 -> 0 | W10: =SUM(E$3:E10)/N10 -> 0 | X10: =SUM(D$3:D10)/O10 -> 0 | Y10: =G10/(N10-N9) -> 0 | Z10: =F10/O10 -> 0 | AA10: =SUM(G$3:G10)/N10 -> 0 | AB10: =SUM(F$3:F10)/O10 -> 0 | AC10: =I10/(N10-N9) -> 0.8902823036 | AD10: =H10/O10 -> 0.9230769231 | AE10: =SUM(I$3:I10)/N10 -> 0.7192511749 | AF10: =SUM(H$3:H10)/P10 -> 0.6334951456 | AG10: =K10/(N10-N9) -> 0.1097176964 | AH10: =J10/O10 -> 0.07692307692 | AI10: =SUM(K$3:K10)/N10 -> 0.09137313184 | AJ10: =SUM(J$3:J10)/P10 -> 0.2160194175 | AK10: =M10/(N10-N9) -> 0 | AL10: =L10/O10 -> 0 | AM10: =SUM(M$3:M10)/N10 -> 0.1893756933 | AN10: =SUM(L$3:L10)/P10 -> 0.1504854369 | AP10: Day 7 | AQ10: 2024-04-22 | AR10: 39822 | AS10: 0 | AT10: 0 | AU10: 0 | AV10: 0 | AW10: 26 | AX10: 1811.48 | AY10: 2 | AZ10: 200 | BA10: 0 | BB10: 0 | BC10: 39894.76 | BD10: 28 | BE10: 549 | BF10: 72.668051 | BG10: 71.83857143 | BH10: 5699.251429 | BI10: 0.05051177741 | BJ10: 0 | BK10: 0 | BL10: 0 | BM10: 0 | BN10: 0 | BO10: 0 | BP10: 0 | BQ10: 0 | BR10: 0.900570724 | BS10: 0.9285714286 | BT10: 0.7196095427 | BU10: 0.679417122 | BV10: 0.09942927596 | BW10: 0.07142857143 | BX10: 0.08640508177 | BY10: 0.2112932605 | BZ10: 0 | CA10: 0 | CB10: 0.1939853755 | CC10: 0.1092896175 | CE10: Day 7 | CF10: 2023-10-08 | CG10: 48752 | CH10: 0 | CI10: 0 | CJ10: 0 | CK10: 0 | CL10: 23 | CM10: 1686 | CN10: 4 | CO10: 237 | CP10: 1 | CQ10: 25 | CR10: 27061.68 | CS10: 28 | CT10: 404 | CU10: 66.98435644 | CV10: 69.57142857 | CW10: 3865.954286 | CX10: 0.03995733508 | CY10: 0 | CZ10: 0 | DA10: 0.001847631041 | DB10: 0.03571428571 | DC10: 0 | DD10: 0 | DE10: 0 | DF10: 0 | DG10: 0.8655030801 | DH10: 0.8214285714 | DI10: 0.6097285904 | DJ10: 0.5099009901 | DK10: 0.1216632444 | DL10: 0.1428571429 | DM10: 0.1865590015 | DN10: 0.3564356436 | DO10: 0.01283367556 | DP10: 0.03571428571 | DQ10: 0.2018647771 | DR10: 0.1311881188 | DT10: Day 7 | DU10: 2023-04-17 | DV10: 50252 | DW10: 0 | DX10: 0 | DY10: 0 | DZ10: 0 | EA10: 8 | EB10: 319.63 | EC10: 1 | ED10: 19.89 | EE10: 3 | EF10: 350 | EG10: 29179.71 | EH10: 12 | EI10: 456 | EJ10: 63.99059211 | EK10: 57.46 | EL10: 4168.53 | EM10: 0.01372124493 | EN10: 0 | EO10: 0 | EP10: 0.008567597142 | EQ10: 0.25 | ER10: 0 | ES10: 0 | ET10: 0 | EU10: 0 | EV10: 0.4635543567 | EW10: 0.6666666667 | EX10: 0.6495924737 | EY10: 0.5701754386 | EZ10: 0.02884615385 | FA10: 0.08333333333 | FB10: 0.1331257233 | FC10: 0.2763157895 | FD10: 0.5075994895 | FE10: 0.25 | FF10: 0.2087142059 | FG10: 0.1469298246 | FI10: Day 7 | FJ10: 2022-10-09 | FK10: 51670 | FL10: 0 | FM10: 0 | FN10: 0 | FO10: 0 | FP10: 5 | FQ10: 214.77 | FR10: 1 | FS10: 5 | FT10: 1 | FU10: 500 | FV10: 26558.92 | FW10: 7 | FX10: 382 | FY10: 69.52596859 | FZ10: 102.8242857 | GA10: 3794.131429 | GB10: 0.01393013354 | GC10: 0 | GD10: 0 | GE10: 0.009627274001 | GF10: 0.5714285714 | GG10: 0 | GH10: 0 | GI10: 0 | GJ10: 0 | GK10: 0.2983869847 | GL10: 0.7142857143 | GM10: 0.5726640993 | GN10: 0.4869109948 | GO10: 0.006946663518 | GP10: 0.1428571429 | GQ10: 0.1318284027 | GR10: 0.2984293194 | GS10: 0.6946663518 | GT10: 0.1428571429 | GU10: 0.285880224 | GV10: 0.2041884817
A11: Day 8 | B11: 2024-10-14 | C11: 40465 | D11: =COUNTIFS('Sanitized Raw Data'!$H:$H,">="&$B11,'Sanitized Raw Data'!$H:$H,"<"&$B12,'Sanitized Raw Data'!$D:$D,"Matching Grant") -> 0 | E11: =SUMIFS('Sanitized Raw Data'!$C:$C,'Sanitized Raw Data'!$H:$H,">="&$B11,'Sanitized Raw Data'!$H:$H,"<"&$B12,'Sanitized Raw Data'!$D:$D,"Matching Grant") -> 0 | F11: =COUNTIFS('Sanitized Raw Data'!$H:$H,">="&$B11,'Sanitized Raw Data'!$H:$H,"<"&$B12,'Sanitized Raw Data'!$D:$D,"Cash") -> 0 | G11: =SUMIFS('Sanitized Raw Data'!$C:$C,'Sanitized Raw Data'!$H:$H,">="&$B11,'Sanitized Raw Data'!$H:$H,"<"&$B12,'Sanitized Raw Data'!$D:$D,"Cash") -> 0 | H11: =COUNTIFS('Sanitized Raw Data'!$H:$H,">="&$B11,'Sanitized Raw Data'!$H:$H,"<"&$B12,'Sanitized Raw Data'!$D:$D,"CC") -> 95 | I11: =SUMIFS('Sanitized Raw Data'!$C:$C,'Sanitized Raw Data'!$H:$H,">="&$B11,'Sanitized Raw Data'!$H:$H,"<"&$B12,'Sanitized Raw Data'!$D:$D,"CC") -> 8039.31 | J11: =COUNTIFS('Sanitized Raw Data'!$H:$H,">="&$B11,'Sanitized Raw Data'!$H:$H,"<"&$B12,'Sanitized Raw Data'!$D:$D,"PayPal") -> 11 | K11: =SUMIFS('Sanitized Raw Data'!$C:$C,'Sanitized Raw Data'!$H:$H,">="&$B11,'Sanitized Raw Data'!$H:$H,"<"&$B12,'Sanitized Raw Data'!$D:$D,"PayPal") -> 379.24 | L11: =COUNTIFS('Sanitized Raw Data'!$H:$H,">="&$B11,'Sanitized Raw Data'!$H:$H,"<"&$B12,'Sanitized Raw Data'!$D:$D,"Personal Check")+COUNTIFS('Sanitized Raw Data'!$H:$H,">="&$B11,'Sanitized Raw Data'!$H:$H,"<"&$B12,'Sanitized Raw Data'!$D:$D,"ACH Grant Deposit") -> 0 | M11: =SUMIFS('Sanitized Raw Data'!$C:$C,'Sanitized Raw Data'!$H:$H,">="&$B11,'Sanitized Raw Data'!$H:$H,"<"&$B12,'Sanitized Raw Data'!$D:$D,"Personal Check")+SUMIFS('Sanitized Raw Data'!$C:$C,'Sanitized Raw Data'!$H:$H,">="&$B11,'Sanitized Raw Data'!$H:$H,"<"&$B12,'Sanitized Raw Data'!$D:$D,"ACH Grant Deposit") -> 0 | N11: =SUM(G11,M11,K11,I11,N10,E11) -> 35481.21 | O11: =SUM(F11,H11,J11,L11,D11) -> 106 | P11: =SUM(F11,L11,J11,H11,P10,D11) -> 518 | Q11: =N11/P11 -> 68.4965444 | R11: =(SUM(G11,M11,K11,I11,E11))/(SUM(F11,H11,J11,L11,D11)) -> 79.42028302 | S11: =N11/Sheet11!$A8 -> 4435.15125 | T11: =(N11-N10)/C$3 -> 0.2080452243 | U11: =E11/(N11-N10) -> 0 | V11: =D11/O11 -> 0 | W11: =SUM(E$3:E11)/N11 -> 0 | X11: =SUM(D$3:D11)/O11 -> 0 | Y11: =G11/(N11-N10) -> 0 | Z11: =F11/O11 -> 0 | AA11: =SUM(G$3:G11)/N11 -> 0 | AB11: =SUM(F$3:F11)/O11 -> 0 | AC11: =I11/(N11-N10) -> 0.9549518623 | AD11: =H11/O11 -> 0.8962264151 | AE11: =SUM(I$3:I11)/N11 -> 0.7751753675 | AF11: =SUM(H$3:H11)/P11 -> 0.6872586873 | AG11: =K11/(N11-N10) -> 0.04504813774 | AH11: =J11/O11 -> 0.1037735849 | AI11: =SUM(K$3:K11)/N11 -> 0.08038170062 | AJ11: =SUM(J$3:J11)/P11 -> 0.1930501931 | AK11: =M11/(N11-N10) -> 0 | AL11: =L11/O11 -> 0 | AM11: =SUM(M$3:M11)/N11 -> 0.1444429319 | AN11: =SUM(L$3:L11)/P11 -> 0.1196911197 | AP11: Day 8 | AQ11: 2024-04-23 | AR11: 39822 | CE11: Day 8 | CF11: 2023-10-09 | CG11: 48752 | CH11: 0 | CI11: 0 | CJ11: 0 | CK11: 0 | CL11: 11 | CM11: 799.79 | CN11: 4 | CO11: 149.89 | CP11: 1 | CQ11: 25 | CR11: 28036.36 | CS11: 16 | CT11: 420 | CU11: 66.7532381 | CV11: 60.9175 | CW11: 3504.545 | CX11: 0.01999261569 | CY11: 0 | CZ11: 0 | DA11: 0.001783398415 | DB11: 0.0625 | DC11: 0 | DD11: 0 | DE11: 0 | DF11: 0 | DG11: 0.8205667501 | DH11: 0.6875 | DI11: 0.6170583485 | DJ11: 0.5166666667 | DK11: 0.153783806 | DL11: 0.25 | DM11: 0.1854195766 | DN11: 0.3523809524 | DO11: 0.02564944392 | DP11: 0.0625 | DQ11: 0.1957386765 | DR11: 0.1285714286 | DT11: Day 8 | DU11: 2023-04-18 | DV11: 50252 | DW11: 0 | DX11: 0 | DY11: 0 | DZ11: 0 | EA11: 17 | EB11: 1100.47 | EC11: 2 | ED11: 69.79 | EE11: 0 | EF11: 0 | EG11: 30349.97 | EH11: 19 | EI11: 475 | EJ11: 63.89467368 | EK11: 61.59263158 | EL11: 3793.74625 | EM11: 0.02328782934 | EN11: 0 | EO11: 0 | EP11: 0.008237240432 | EQ11: 0.1578947368 | ER11: 0 | ES11: 0 | ET11: 0 | EU11: 0 | EV11: 0.9403636799 | EW11: 0.8947368421 | EX11: 0.6608042776 | EY11: 0.5831578947 | EZ11: 0.05963632013 | FA11: 0.1052631579 | FB11: 0.1302920563 | FC11: 0.2694736842 | FD11: 0 | FE11: 0 | FF11: 0.2006664257 | FG11: 0.1410526316 | FI11: Day 8 | FJ11: 2022-10-10 | FK11: 51670 | FL11: 0 | FM11: 0 | FN11: 0 | FO11: 0 | FP11: 109 | FQ11: 7196.39 | FR11: 34 | FS11: 2233.26 | FT11: 13 | FU11: 1180 | FV11: 37168.57 | FW11: 156 | FX11: 538 | FY11: 69.08656134 | FZ11: 68.01057692 | GA11: 4646.07125 | GB11: 0.2053348171 | GC11: 0 | GD11: 0 | GE11: 0.00687919928 | GF11: 0.02564102564 | GG11: 0 | GH11: 0 | GI11: 0 | GJ11: 0 | GK11: 0.6782872197 | GL11: 0.6987179487 | GM11: 0.6028138828 | GN11: 0.5483271375 | GO11: 0.2104932773 | GP11: 0.2179487179 | GQ11: 0.1542830408 | GR11: 0.2750929368 | GS11: 0.111219503 | GT11: 0.08333333333 | GU11: 0.2360238772 | GV11: 0.1691449814
A12: Day 9 | B12: 2024-10-15 | C12: 40465 | D12: =COUNTIFS('Sanitized Raw Data'!$H:$H,">="&$B12,'Sanitized Raw Data'!$H:$H,"<"&$B13,'Sanitized Raw Data'!$D:$D,"Matching Grant") -> 0 | E12: =SUMIFS('Sanitized Raw Data'!$C:$C,'Sanitized Raw Data'!$H:$H,">="&$B12,'Sanitized Raw Data'!$H:$H,"<"&$B13,'Sanitized Raw Data'!$D:$D,"Matching Grant") -> 0 | F12: =COUNTIFS('Sanitized Raw Data'!$H:$H,">="&$B12,'Sanitized Raw Data'!$H:$H,"<"&$B13,'Sanitized Raw Data'!$D:$D,"Cash") -> 0 | G12: =SUMIFS('Sanitized Raw Data'!$C:$C,'Sanitized Raw Data'!$H:$H,">="&$B12,'Sanitized Raw Data'!$H:$H,"<"&$B13,'Sanitized Raw Data'!$D:$D,"Cash") -> 0 | H12: =COUNTIFS('Sanitized Raw Data'!$H:$H,">="&$B12,'Sanitized Raw Data'!$H:$H,"<"&$B13,'Sanitized Raw Data'!$D:$D,"CC") -> 23 | I12: =SUMIFS('Sanitized Raw Data'!$C:$C,'Sanitized Raw Data'!$H:$H,">="&$B12,'Sanitized Raw Data'!$H:$H,"<"&$B13,'Sanitized Raw Data'!$D:$D,"CC") -> 2537.77 | J12: =COUNTIFS('Sanitized Raw Data'!$H:$H,">="&$B12,'Sanitized Raw Data'!$H:$H,"<"&$B13,'Sanitized Raw Data'!$D:$D,"PayPal") -> 3 | K12: =SUMIFS('Sanitized Raw Data'!$C:$C,'Sanitized Raw Data'!$H:$H,">="&$B12,'Sanitized Raw Data'!$H:$H,"<"&$B13,'Sanitized Raw Data'!$D:$D,"PayPal") -> 100 | L12: =COUNTIFS('Sanitized Raw Data'!$H:$H,">="&$B12,'Sanitized Raw Data'!$H:$H,"<"&$B13,'Sanitized Raw Data'!$D:$D,"Personal Check")+COUNTIFS('Sanitized Raw Data'!$H:$H,">="&$B12,'Sanitized Raw Data'!$H:$H,"<"&$B13,'Sanitized Raw Data'!$D:$D,"ACH Grant Deposit") -> 0 | M12: =SUMIFS('Sanitized Raw Data'!$C:$C,'Sanitized Raw Data'!$H:$H,">="&$B12,'Sanitized Raw Data'!$H:$H,"<"&$B13,'Sanitized Raw Data'!$D:$D,"Personal Check")+SUMIFS('Sanitized Raw Data'!$C:$C,'Sanitized Raw Data'!$H:$H,">="&$B12,'Sanitized Raw Data'!$H:$H,"<"&$B13,'Sanitized Raw Data'!$D:$D,"ACH Grant Deposit") -> 0 | N12: =SUM(G12,M12,K12,I12,N11,E12) -> 38118.98 | O12: =SUM(F12,H12,J12,L12,D12) -> 26 | P12: =SUM(F12,L12,J12,H12,P11,D12) -> 544 | Q12: =N12/P12 -> 70.07165441 | R12: =(SUM(G12,M12,K12,I12,E12))/(SUM(F12,H12,J12,L12,D12)) -> 101.4526923 | S12: =N12/Sheet11!$A9 -> 4235.442222 | T12: =(N12-N11)/C$3 -> 0.06518645743 | U12: =E12/(N12-N11) -> 0 | V12: =D12/O12 -> 0 | W12: =SUM(E$3:E12)/N12 -> 0 | X12: =SUM(D$3:D12)/O12 -> 0 | Y12: =G12/(N12-N11) -> 0 | Z12: =F12/O12 -> 0 | AA12: =SUM(G$3:G12)/N12 -> 0 | AB12: =SUM(F$3:F12)/O12 -> 0 | AC12: =I12/(N12-N11) -> 0.962089189 | AD12: =H12/O12 -> 0.8846153846 | AE12: =SUM(I$3:I12)/N12 -> 0.788109493 | AF12: =SUM(H$3:H12)/P12 -> 0.6966911765 | AG12: =K12/(N12-N11) -> 0.03791081103 | AH12: =J12/O12 -> 0.1153846154 | AI12: =SUM(K$3:K12)/N12 -> 0.07744278572 | AJ12: =SUM(J$3:J12)/P12 -> 0.1893382353 | AK12: =M12/(N12-N11) -> 0 | AL12: =L12/O12 -> 0 | AM12: =SUM(M$3:M12)/N12 -> 0.1344477213 | AN12: =SUM(L$3:L12)/P12 -> 0.1139705882 | AP12: Day 9 | AQ12: 2024-04-24 | AR12: 39822 | CE12: Day 9 | CF12: 2023-10-10 | CG12: 48752 | CH12: 0 | CI12: 0 | CJ12: 0 | CK12: 0 | CL12: 92 | CM12: 6860.3 | CN12: 18 | CO12: 892 | CP12: 4 | CQ12: 318 | CR12: 36106.66 | CS12: 114 | CT12: 534 | CU12: 67.61546816 | CV12: 70.79210526 | CW12: 4011.851111 | CX12: 0.1655378241 | CY12: 0 | CZ12: 0 | DA12: 0.001384786075 | DB12: 0.008771929825 | DC12: 0 | DD12: 0 | DE12: 0 | DF12: 0 | DG12: 0.8500675316 | DH12: 0.8070175439 | DI12: 0.6691388791 | DJ12: 0.5786516854 | DK12: 0.1105287288 | DL12: 0.1578947368 | DM12: 0.1686805149 | DN12: 0.3108614232 | DO12: 0.03940373964 | DP12: 0.0350877193 | DQ12: 0.1607958199 | DR12: 0.1086142322 | DT12: Day 9 | DU12: 2023-04-19 | DV12: 50252 | DW12: 0 | DX12: 0 | DY12: 0 | DZ12: 0 | EA12: 85 | EB12: 6611.55 | EC12: 10 | ED12: 614 | EE12: 3 | EF12: 183 | EG12: 37758.52 | EH12: 98 | EI12: 573 | EJ12: 65.89619546 | EK12: 75.59744898 | EL12: 4195.391111 | EM12: 0.1474279631 | EN12: 0 | EO12: 0 | EP12: 0.006621022222 | EQ12: 0.0306122449 | ER12: 0 | ES12: 0 | ET12: 0 | EU12: 0 | EV12: 0.892421594 | EW12: 0.8673469388 | EX12: 0.7062496094 | EY12: 0.6317626527 | EZ12: 0.08287721619 | FA12: 0.1020408163 | FB12: 0.1209888523 | FC12: 0.2408376963 | FD12: 0.02470118984 | FE12: 0.0306122449 | FF12: 0.1661405161 | FG12: 0.1221640489 | FI12: Day 9 | FJ12: 2022-10-11 | FK12: 51670 | FL12: 0 | FM12: 0 | FN12: 0 | FO12: 0 | FP12: 18 | FQ12: 1503.52 | FR12: 2 | FS12: 35 | FT12: 3 | FU12: 90 | FV12: 38797.09 | FW12: 23 | FX12: 561 | FY12: 69.15702317 | FZ12: 70.80521739 | GA12: 4310.787778 | GB12: 0.03151770853 | GC12: 0 | GD12: 0 | GE12: 0.006590442737 | GF12: 0.1739130435 | GG12: 0 | GH12: 0 | GI12: 0 | GJ12: 0 | GK12: 0.9232431901 | GL12: 0.7826086957 | GM12: 0.6162640033 | GN12: 0.5579322638 | GO12: 0.02149190676 | GP12: 0.08695652174 | GQ12: 0.1487090913 | GR12: 0.2673796791 | GS12: 0.0552649031 | GT12: 0.1304347826 | GU12: 0.2284364626 | GV12: 0.1675579323
A13: Day 10 | B13: 2024-10-16 | C13: 40465 | D13: =COUNTIFS('Sanitized Raw Data'!$H:$H,">="&$B13,'Sanitized Raw Data'!$H:$H,"<"&$B14,'Sanitized Raw Data'!$D:$D,"Matching Grant") -> 0 | E13: =SUMIFS('Sanitized Raw Data'!$C:$C,'Sanitized Raw Data'!$H:$H,">="&$B13,'Sanitized Raw Data'!$H:$H,"<"&$B14,'Sanitized Raw Data'!$D:$D,"Matching Grant") -> 0 | F13: =COUNTIFS('Sanitized Raw Data'!$H:$H,">="&$B13,'Sanitized Raw Data'!$H:$H,"<"&$B14,'Sanitized Raw Data'!$D:$D,"Cash") -> 0 | G13: =SUMIFS('Sanitized Raw Data'!$C:$C,'Sanitized Raw Data'!$H:$H,">="&$B13,'Sanitized Raw Data'!$H:$H,"<"&$B14,'Sanitized Raw Data'!$D:$D,"Cash") -> 0 | H13: =COUNTIFS('Sanitized Raw Data'!$H:$H,">="&$B13,'Sanitized Raw Data'!$H:$H,"<"&$B14,'Sanitized Raw Data'!$D:$D,"CC") -> 32 | I13: =SUMIFS('Sanitized Raw Data'!$C:$C,'Sanitized Raw Data'!$H:$H,">="&$B13,'Sanitized Raw Data'!$H:$H,"<"&$B14,'Sanitized Raw Data'!$D:$D,"CC") -> 2250.82 | J13: =COUNTIFS('Sanitized Raw Data'!$H:$H,">="&$B13,'Sanitized Raw Data'!$H:$H,"<"&$B14,'Sanitized Raw Data'!$D:$D,"PayPal") -> 2 | K13: =SUMIFS('Sanitized Raw Data'!$C:$C,'Sanitized Raw Data'!$H:$H,">="&$B13,'Sanitized Raw Data'!$H:$H,"<"&$B14,'Sanitized Raw Data'!$D:$D,"PayPal") -> 39.79 | L13: =COUNTIFS('Sanitized Raw Data'!$H:$H,">="&$B13,'Sanitized Raw Data'!$H:$H,"<"&$B14,'Sanitized Raw Data'!$D:$D,"Personal Check")+COUNTIFS('Sanitized Raw Data'!$H:$H,">="&$B13,'Sanitized Raw Data'!$H:$H,"<"&$B14,'Sanitized Raw Data'!$D:$D,"ACH Grant Deposit") -> 0 | M13: =SUMIFS('Sanitized Raw Data'!$C:$C,'Sanitized Raw Data'!$H:$H,">="&$B13,'Sanitized Raw Data'!$H:$H,"<"&$B14,'Sanitized Raw Data'!$D:$D,"Personal Check")+SUMIFS('Sanitized Raw Data'!$C:$C,'Sanitized Raw Data'!$H:$H,">="&$B13,'Sanitized Raw Data'!$H:$H,"<"&$B14,'Sanitized Raw Data'!$D:$D,"ACH Grant Deposit") -> 0 | N13: =SUM(G13,M13,K13,I13,N12,E13) -> 40409.59 | O13: =SUM(F13,H13,J13,L13,D13) -> 34 | P13: =SUM(F13,L13,J13,H13,P12,D13) -> 578 | Q13: =N13/P13 -> 69.91278547 | R13: =(SUM(G13,M13,K13,I13,E13))/(SUM(F13,H13,J13,L13,D13)) -> 67.37088235 | S13: =N13/Sheet11!$A10 -> 4040.959 | T13: =(N13-N12)/C$3 -> 0.0566071914 | U13: =E13/(N13-N12) -> 0 | V13: =D13/O13 -> 0 | W13: =SUM(E$3:E13)/N13 -> 0 | X13: =SUM(D$3:D13)/O13 -> 0 | Y13: =G13/(N13-N12) -> 0 | Z13: =F13/O13 -> 0 | AA13: =SUM(G$3:G13)/N13 -> 0 | AB13: =SUM(F$3:F13)/O13 -> 0 | AC13: =I13/(N13-N12) -> 0.9826290813 | AD13: =H13/O13 -> 0.9411764706 | AE13: =SUM(I$3:I13)/N13 -> 0.7991357992 | AF13: =SUM(H$3:H13)/P13 -> 0.7110726644 | AG13: =K13/(N13-N12) -> 0.01737091866 | AH13: =J13/O13 -> 0.05882352941 | AI13: =SUM(K$3:K13)/N13 -> 0.07403762325 | AJ13: =SUM(J$3:J13)/P13 -> 0.1816608997 | AK13: =M13/(N13-N12) -> 0 | AL13: =L13/O13 -> 0 | AM13: =SUM(M$3:M13)/N13 -> 0.1268265776 | AN13: =SUM(L$3:L13)/P13 -> 0.107266436 | AP13: Day 10 | AQ13: 2024-04-25 | AR13: 39822 | CE13: Day 10 | CF13: 2023-10-11 | CG13: 48752 | CH13: 0 | CI13: 0 | CJ13: 0 | CK13: 0 | CL13: 15 | CM13: 1015 | CN13: 3 | CO13: 79.79 | CP13: 2 | CQ13: 208 | CR13: 37409.45 | CS13: 20 | CT13: 554 | CU13: 67.52608303 | CV13: 65.1395 | CW13: 3740.945 | CX13: 0.02672280112 | CY13: 0 | CZ13: 0 | DA13: 0.001336560682 | DB13: 0.05 | DC13: 0 | DD13: 0 | DE13: 0 | DF13: 0 | DG13: 0.7790971684 | DH13: 0.75 | DI13: 0.6729681939 | DJ13: 0.5848375451 | DK13: 0.06124548085 | DL13: 0.15 | DM13: 0.1649390729 | DN13: 0.3050541516 | DO13: 0.1596573508 | DP13: 0.1 | DQ13: 0.1607561726 | DR13: 0.1083032491 | DT13: Day 10 | DU13: 2023-04-20 | DV13: 50252 | DW13: 0 | DX13: 0 | DY13: 0 | DZ13: 0 | EA13: 23 | EB13: 2011.79 | EC13: 3 | ED13: 350 | EE13: 5 | EF13: 731 | EG13: 40851.31 | EH13: 31 | EI13: 604 | EJ13: 67.63461921 | EK13: 99.76741935 | EL13: 4085.131 | EM13: 0.06154561012 | EN13: 0 | EO13: 0 | EP13: 0.006119754789 | EQ13: 0.09677419355 | ER13: 0 | ES13: 0 | ET13: 0 | EU13: 0 | EV13: 0.6504774007 | EW13: 0.7419354839 | EX13: 0.702027181 | EY13: 0.6374172185 | EZ13: 0.113166429 | FA13: 0.09677419355 | FB13: 0.1203966287 | FC13: 0.2334437086 | FD13: 0.2363561703 | FE13: 0.1612903226 | FF13: 0.1714564355 | FG13: 0.1241721854 | FI13: Day 10 | FJ13: 2022-10-12 | FK13: 51670 | FL13: 0 | FM13: 0 | FN13: 0 | FO13: 0 | FP13: 15 | FQ13: 1167.19 | FR13: 0 | FS13: 0 | FT13: 4 | FU13: 921 | FV13: 40885.28 | FW13: 19 | FX13: 580 | FY13: 70.49186207 | FZ13: 109.9047368 | GA13: 4088.528 | GB13: 0.04041397329 | GC13: 0 | GD13: 0 | GE13: 0.006253840013 | GF13: 0.2105263158 | GG13: 0 | GH13: 0 | GI13: 0 | GJ13: 0 | GK13: 0.55894818 | GL13: 0.7894736842 | GM13: 0.6133366336 | GN13: 0.5655172414 | GO13: 0 | GP13: 0 | GQ13: 0.1411138679 | GR13: 0.2586206897 | GS13: 0.44105182 | GT13: 0.2105263158 | GU13: 0.2392956585 | GV13: 0.1689655172
A14: Day 11 | B14: 2024-10-17 | C14: 40465 | D14: =COUNTIFS('Sanitized Raw Data'!$H:$H,">="&$B14,'Sanitized Raw Data'!$H:$H,"<"&$B15,'Sanitized Raw Data'!$D:$D,"Matching Grant") -> 0 | E14: =SUMIFS('Sanitized Raw Data'!$C:$C,'Sanitized Raw Data'!$H:$H,">="&$B14,'Sanitized Raw Data'!$H:$H,"<"&$B15,'Sanitized Raw Data'!$D:$D,"Matching Grant") -> 0 | F14: =COUNTIFS('Sanitized Raw Data'!$H:$H,">="&$B14,'Sanitized Raw Data'!$H:$H,"<"&$B15,'Sanitized Raw Data'!$D:$D,"Cash") -> 0 | G14: =SUMIFS('Sanitized Raw Data'!$C:$C,'Sanitized Raw Data'!$H:$H,">="&$B14,'Sanitized Raw Data'!$H:$H,"<"&$B15,'Sanitized Raw Data'!$D:$D,"Cash") -> 0 | H14: =COUNTIFS('Sanitized Raw Data'!$H:$H,">="&$B14,'Sanitized Raw Data'!$H:$H,"<"&$B15,'Sanitized Raw Data'!$D:$D,"CC") -> 2 | I14: =SUMIFS('Sanitized Raw Data'!$C:$C,'Sanitized Raw Data'!$H:$H,">="&$B14,'Sanitized Raw Data'!$H:$H,"<"&$B15,'Sanitized Raw Data'!$D:$D,"CC") -> 300 | J14: =COUNTIFS('Sanitized Raw Data'!$H:$H,">="&$B14,'Sanitized Raw Data'!$H:$H,"<"&$B15,'Sanitized Raw Data'!$D:$D,"PayPal") -> 0 | K14: =SUMIFS('Sanitized Raw Data'!$C:$C,'Sanitized Raw Data'!$H:$H,">="&$B14,'Sanitized Raw Data'!$H:$H,"<"&$B15,'Sanitized Raw Data'!$D:$D,"PayPal") -> 0 | L14: =COUNTIFS('Sanitized Raw Data'!$H:$H,">="&$B14,'Sanitized Raw Data'!$H:$H,"<"&$B15,'Sanitized Raw Data'!$D:$D,"Personal Check")+COUNTIFS('Sanitized Raw Data'!$H:$H,">="&$B14,'Sanitized Raw Data'!$H:$H,"<"&$B15,'Sanitized Raw Data'!$D:$D,"ACH Grant Deposit") -> 0 | M14: =SUMIFS('Sanitized Raw Data'!$C:$C,'Sanitized Raw Data'!$H:$H,">="&$B14,'Sanitized Raw Data'!$H:$H,"<"&$B15,'Sanitized Raw Data'!$D:$D,"Personal Check")+SUMIFS('Sanitized Raw Data'!$C:$C,'Sanitized Raw Data'!$H:$H,">="&$B14,'Sanitized Raw Data'!$H:$H,"<"&$B15,'Sanitized Raw Data'!$D:$D,"ACH Grant Deposit") -> 0 | N14: =SUM(G14,M14,K14,I14,N13,E14) -> 40709.59 | O14: =SUM(F14,H14,J14,L14,D14) -> 2 | P14: =SUM(F14,L14,J14,H14,P13,D14) -> 580 | Q14: =N14/P14 -> 70.18894828 | R14: =(SUM(G14,M14,K14,I14,E14))/(SUM(F14,H14,J14,L14,D14)) -> 150 | S14: =N14/Sheet11!$A11 -> 3700.871818 | T14: =(N14-N13)/C$3 -> 0.007413814408 | U14: =E14/(N14-N13) -> 0 | V14: =D14/O14 -> 0 | W14: =SUM(E$3:E14)/N14 -> 0 | X14: =SUM(D$3:D14)/O14 -> 0 | Y14: =G14/(N14-N13) -> 0 | Z14: =F14/O14 -> 0 | AA14: =SUM(G$3:G14)/N14 -> 0 | AB14: =SUM(F$3:F14)/O14 -> 0 | AC14: =I14/(N14-N13) -> 1 | AD14: =H14/O14 -> 1 | AE14: =SUM(I$3:I14)/N14 -> 0.8006160219 | AF14: =SUM(H$3:H14)/P14 -> 0.7120689655 | AG14: =K14/(N14-N13) -> 0 | AH14: =J14/O14 -> 0 | AI14: =SUM(K$3:K14)/N14 -> 0.07349201994 | AJ14: =SUM(J$3:J14)/P14 -> 0.1810344828 | AK14: =M14/(N14-N13) -> 0 | AL14: =L14/O14 -> 0 | AM14: =SUM(M$3:M14)/N14 -> 0.1258919581 | AN14: =SUM(L$3:L14)/P14 -> 0.1068965517 | AP14: Day 11 | AQ14: 2024-04-26 | AR14: 39822 | CE14: Day 11 | CF14: 2023-10-12 | CG14: 48752 | CH14: 0 | CI14: 0 | CJ14: 0 | CK14: 0 | CL14: 7 | CM14: 403 | CN14: 0 | CO14: 0 | CP14: 0 | CQ14: 0 | CR14: 37812.45 | CS14: 7 | CT14: 561 | CU14: 67.40187166 | CV14: 57.57142857 | CW14: 3437.495455 | CX14: 0.008266327535 | CY14: 0 | CZ14: 0 | DA14: 0.001322315798 | DB14: 0.1428571429 | DC14: 0 | DD14: 0 | DE14: 0 | DF14: 0 | DG14: 1 | DH14: 1 | DI14: 0.6764536548 | DJ14: 0.5900178253 | DK14: 0 | DL14: 0 | DM14: 0.1631811745 | DN14: 0.3012477718 | DO14: 0 | DP14: 0 | DQ14: 0.1590428549 | DR14: 0.1069518717 | DT14: Day 11 | DU14: 2023-04-21 | DV14: 50252 | DW14: 0 | DX14: 0 | DY14: 0 | DZ14: 0 | EA14: 9 | EB14: 644.54 | EC14: 3 | ED14: 200 | EE14: 0 | EF14: 0 | EG14: 41695.85 | EH14: 12 | EI14: 616 | EJ14: 67.68806818 | EK14: 70.37833333 | EL14: 3790.531818 | EM14: 0.01680609727 | EN14: 0 | EO14: 0 | EP14: 0.005995800541 | EQ14: 0.25 | ER14: 0 | ES14: 0 | ET14: 0 | EU14: 0 | EV14: 0.7631846923 | EW14: 0.75 | EX14: 0.7032659126 | EY14: 0.6396103896 | EZ14: 0.2368153077 | FA14: 0.25 | FB14: 0.1227546626 | FC14: 0.2337662338 | FD14: 0 | FE14: 0 | FF14: 0.1679836243 | FG14: 0.1217532468 | FI14: Day 11 | FJ14: 2022-10-13 | FK14: 51670 | FL14: 0 | FM14: 0 | FN14: 0 | FO14: 0 | FP14: 8 | FQ14: 275 | FR14: 1 | FS14: 25 | FT14: 3 | FU14: 190 | FV14: 41375.28 | FW14: 12 | FX14: 592 | FY14: 69.89067568 | FZ14: 40.83333333 | GA14: 3761.389091 | GB14: 0.009483259145 | GC14: 0 | GD14: 0 | GE14: 0.00617977691 | GF14: 0.3333333333 | GG14: 0 | GH14: 0 | GI14: 0 | GJ14: 0 | GK14: 0.5612244898 | GL14: 0.6666666667 | GM14: 0.6127194789 | GN14: 0.5675675676 | GO14: 0.05102040816 | GP14: 0.08333333333 | GQ14: 0.1400469072 | GR14: 0.2550675676 | GS14: 0.387755102 | GT14: 0.25 | GU14: 0.241053837 | GV14: 0.1706081081
A15: Day 12 | B15: 2024-10-18 | C15: 40465 | AP15: Day 12 | AQ15: 2024-04-27 | AR15: 39822 | CE15: Day 12 | CF15: 2023-10-13 | CG15: 48752 | CH15: 0 | CI15: 0 | CJ15: 0 | CK15: 0 | CL15: 8 | CM15: 544.89 | CN15: 0 | CO15: 0 | CP15: 0 | CQ15: 0 | CR15: 38357.34 | CS15: 8 | CT15: 569 | CU15: 67.41184534 | CV15: 68.11125 | CW15: 3196.445 | CX15: 0.01117677223 | CY15: 0 | CZ15: 0 | DA15: 0.001303531475 | DB15: 0.125 | DC15: 0 | DD15: 0 | DE15: 0 | DF15: 0 | DG15: 1 | DH15: 1 | DI15: 0.681049833 | DJ15: 0.5957820738 | DK15: 0 | DL15: 0 | DM15: 0.1608630838 | DN15: 0.2970123023 | DO15: 0 | DP15: 0 | DQ15: 0.1567835517 | DR15: 0.1054481547 | DT15: Day 12 | DU15: 2023-04-22 | DV15: 50252 | DW15: 0 | DX15: 0 | DY15: 0 | DZ15: 0 | EA15: 9 | EB15: 809 | EC15: 0 | ED15: 0 | EE15: 0 | EF15: 0 | EG15: 42504.85 | EH15: 9 | EI15: 625 | EJ15: 68.00776 | EK15: 89.88888889 | EL15: 3542.070833 | EM15: 0.01609886174 | EN15: 0 | EO15: 0 | EP15: 0.005881681737 | EQ15: 0.3333333333 | ER15: 0 | ES15: 0 | ET15: 0 | EU15: 0 | EV15: 1 | EW15: 1 | EX15: 0.7089136887 | EY15: 0.6448 | EZ15: 0 | FA15: 0 | FB15: 0.1204182582 | FC15: 0.2304 | FD15: 0 | FE15: 0 | FF15: 0.1647863714 | FG15: 0.12 | FI15: Day 12 | FJ15: 2022-10-14 | FK15: 51670 | FL15: 0 | FM15: 0 | FN15: 0 | FO15: 0 | FP15: 3 | FQ15: 100 | FR15: 1 | FS15: 25 | FT15: 1 | FU15: 1000 | FV15: 42500.28 | FW15: 5 | FX15: 597 | FY15: 71.18974874 | FZ15: 225 | GA15: 3541.69 | GB15: 0.02177278885 | GC15: 0 | GD15: 0 | GE15: 0.006016195658 | GF15: 0.8 | GG15: 0 | GH15: 0 | GI15: 0 | GJ15: 0 | GK15: 0.08888888889 | GL15: 0.6 | GM15: 0.5988534664 | GN15: 0.567839196 | GO15: 0.02222222222 | GP15: 0.2 | GQ15: 0.1369280391 | GR15: 0.2546063652 | GS15: 0.8888888889 | GT15: 0.2 | GU15: 0.2582022989 | GV15: 0.1708542714
A16: Day 13 | B16: 2024-10-19 | C16: 40465 | AP16: Day 13 | AQ16: 2024-04-28 | AR16: 39822 | CE16: Day 13 | CF16: 2023-10-14 | CG16: 48752 | CH16: 0 | CI16: 0 | CJ16: 0 | CK16: 0 | CL16: 4 | CM16: 475 | CN16: 0 | CO16: 0 | CP16: 0 | CQ16: 0 | CR16: 38832.34 | CS16: 4 | CT16: 573 | CU16: 67.77022688 | CV16: 118.75 | CW16: 2987.103077 | CX16: 0.009743190023 | CY16: 0 | CZ16: 0 | DA16: 0.001287586584 | DB16: 0.25 | DC16: 0 | DD16: 0 | DE16: 0 | DF16: 0 | DG16: 1 | DH16: 1 | DI16: 0.6849512545 | DJ16: 0.5986038394 | DK16: 0 | DL16: 0 | DM16: 0.1588953949 | DN16: 0.294938918 | DO16: 0 | DP16: 0 | DQ16: 0.1548657639 | DR16: 0.1047120419 | DT16: Day 13 | DU16: 2023-04-23 | DV16: 50252 | DW16: 0 | DX16: 0 | DY16: 0 | DZ16: 0 | EA16: 10 | EB16: 793.79 | EC16: 0 | ED16: 0 | EE16: 0 | EF16: 0 | EG16: 43298.64 | EH16: 10 | EI16: 635 | EJ16: 68.18683465 | EK16: 79.379 | EL16: 3330.664615 | EM16: 0.01579618722 | EN16: 0 | EO16: 0 | EP16: 0.005773853405 | EQ16: 0.3 | ER16: 0 | ES16: 0 | ET16: 0 | EU16: 0 | EV16: 1 | EW16: 1 | EX16: 0.7142501473 | EY16: 0.6503937008 | EZ16: 0 | FA16: 0 | FB16: 0.1182106413 | FC16: 0.2267716535 | FD16: 0 | FE16: 0 | FF16: 0.161765358 | FG16: 0.1181102362 | FI16: Day 13 | FJ16: 2022-10-15 | FK16: 51670 | FL16: 0 | FM16: 0 | FN16: 0 | FO16: 0 | FP16: 2 | FQ16: 127.77 | FR16: 0 | FS16: 0 | FT16: 1 | FU16: 500 | FV16: 43128.05 | FW16: 3 | FX16: 600 | FY16: 71.88008333 | FZ16: 209.2566667 | GA16: 3317.542308 | GB16: 0.01214960325 | GC16: 0 | GD16: 0 | GE16: 0.005928624178 | GF16: 1.333333333 | GG16: 0 | GH16: 0 | GI16: 0 | GJ16: 0 | GK16: 0.2035299552 | GL16: 0.6666666667 | GM16: 0.5930991547 | GN16: 0.5683333333 | GO16: 0 | GP16: 0 | GQ16: 0.1349349205 | GR16: 0.2533333333 | GS16: 0.7964700448 | GT16: 0.3333333333 | GU16: 0.2660373006 | GV16: 0.1716666667
A17: Day 14 | B17: 2024-10-20 | C17: 40465 | AP17: Day 14 | AQ17: 2024-04-29 | AR17: 39822 | CE17: Day 14 | CF17: 2023-10-15 | CG17: 48752 | CH17: 0 | CI17: 0 | CJ17: 0 | CK17: 0 | CL17: 5 | CM17: 450 | CN17: 0 | CO17: 0 | CP17: 0 | CQ17: 0 | CR17: 39282.34 | CS17: 5 | CT17: 578 | CU17: 67.96252595 | CV17: 90 | CW17: 2805.881429 | CX17: 0.009230390548 | CY17: 0 | CZ17: 0 | DA17: 0.001272836598 | DB17: 0.2 | DC17: 0 | DD17: 0 | DE17: 0 | DF17: 0 | DG17: 1 | DH17: 1 | DI17: 0.6885603047 | DJ17: 0.6020761246 | DK17: 0 | DL17: 0 | DM17: 0.1570751641 | DN17: 0.2923875433 | DO17: 0 | DP17: 0 | DQ17: 0.1530916946 | DR17: 0.1038062284 | DT17: Day 14 | DU17: 2023-04-24 | DV17: 50252 | DW17: 0 | DX17: 0 | DY17: 0 | DZ17: 0 | EA17: 36 | EB17: 2539.98 | EC17: 0 | ED17: 0 | EE17: 1 | EF17: 64 | EG17: 45902.62 | EH17: 37 | EI17: 672 | EJ17: 68.30747024 | EK17: 70.37783784 | EL17: 3278.758571 | EM17: 0.05181843509 | EN17: 0 | EO17: 0 | EP17: 0.005446312215 | EQ17: 0.08108108108 | ER17: 0 | ES17: 0 | ET17: 0 | EU17: 0 | EV17: 0.9754222383 | EW17: 0.972972973 | EX17: 0.7290660097 | EY17: 0.6681547619 | EZ17: 0 | FA17: 0 | FB17: 0.1115047464 | FC17: 0.2142857143 | FD17: 0.02457776173 | FE17: 0.02702702703 | FF17: 0.1539829317 | FG17: 0.1130952381 | FI17: Day 14 | FJ17: 2022-10-16 | FK17: 51670 | FL17: 0 | FM17: 0 | FN17: 0 | FO17: 0 | FP17: 3 | FQ17: 105 | FR17: 1 | FS17: 100 | FT17: 0 | FU17: 0 | FV17: 43333.05 | FW17: 4 | FX17: 604 | FY17: 71.74346026 | FZ17: 51.25 | GA17: 3095.217857 | GB17: 0.003967485969 | GC17: 0 | GD17: 0 | GE17: 0.005900577042 | GF17: 1 | GG17: 0 | GH17: 0 | GI17: 0 | GJ17: 0 | GK17: 0.512195122 | GL17: 0.75 | GM17: 0.5927164139 | GN17: 0.5695364238 | GO17: 0.487804878 | GP17: 0.25 | GQ17: 0.1366042778 | GR17: 0.2533112583 | GS17: 0 | GT17: 0 | GU17: 0.2647787312 | GV17: 0.1705298013
A18: Day 15 | B18: 2024-10-21 | C18: 40465 | AP18: Day 15 | AQ18: 2024-04-30 | AR18: 39822 | CE18: Day 15 | CF18: 2023-10-16 | CG18: 48752 | CH18: 0 | CI18: 0 | CJ18: 0 | CK18: 0 | CL18: 8 | CM18: 679 | CN18: 2 | CO18: 200 | CP18: 0 | CQ18: 0 | CR18: 40161.34 | CS18: 10 | CT18: 588 | CU18: 68.30159864 | CV18: 87.9 | CW18: 2677.422667 | CX18: 0.01803002954 | CY18: 0 | CZ18: 0 | DA18: 0.00124497838 | DB18: 0.1 | DC18: 0 | DD18: 0 | DE18: 0 | DF18: 0 | DG18: 0.7724687144 | DH18: 0.8 | DI18: 0.6903967846 | DJ18: 0.6054421769 | DK18: 0.2275312856 | DL18: 0.2 | DM18: 0.1586172175 | DN18: 0.2908163265 | DO18: 0 | DP18: 0 | DQ18: 0.1497410196 | DR18: 0.1020408163 | DT18: Day 15 | FI18: Day 15 | FJ18: 2022-10-17 | FK18: 51670 | FL18: 0 | FM18: 0 | FN18: 0 | FO18: 0 | FP18: 39 | FQ18: 2439.58 | FR18: 10 | FS18: 722 | FT18: 2 | FU18: 159 | FV18: 46653.63 | FW18: 51 | FX18: 655 | FY18: 71.22691603 | FZ18: 65.10941176 | GA18: 3110.242 | GB18: 0.06426514418 | GC18: 0 | GD18: 0 | GE18: 0.005480602474 | GF18: 0.07843137255 | GG18: 0 | GH18: 0 | GI18: 0 | GJ18: 0 | GK18: 0.7346849044 | GL18: 0.7647058824 | GM18: 0.6028210452 | GN18: 0.5847328244 | GO18: 0.2174318944 | GP18: 0.1960784314 | GQ18: 0.1423571971 | GR18: 0.2488549618 | GS18: 0.04788320113 | GT18: 0.03921568627 | GU18: 0.2493411552 | GV18: 0.1603053435
A19: Day 16 | B19: 2024-10-22 | C19: 40465 | AP19: Day 16 | AQ19: 2024-05-01 | AR19: 39822 | CE19: Day 16 | CF19: 2023-10-17 | CG19: 48752 | CH19: 0 | CI19: 0 | CJ19: 0 | CK19: 0 | CL19: 64 | CM19: 5028.43 | CN19: 22 | CO19: 3106.56 | CP19: 0 | CQ19: 0 | CR19: 48296.33 | CS19: 86 | CT19: 674 | CU19: 71.65627596 | CV19: 94.59290698 | CW19: 3018.520625 | CX19: 0.166864744 | CY19: 0 | CZ19: 0 | DA19: 0.001035275351 | DB19: 0.01162790698 | DC19: 0 | DD19: 0 | DE19: 0 | DF19: 0 | DG19: 0.6181236855 | DH19: 0.7441860465 | DI19: 0.6782231693 | DJ19: 0.6231454006 | DK19: 0.3818763145 | DL19: 0.2558139535 | DM19: 0.1962227772 | DN19: 0.2863501484 | DO19: 0 | DP19: 0 | DQ19: 0.1245187781 | DR19: 0.08902077151 | DT19: Day 16 | FI19: Day 16 | FJ19: 2022-10-18 | FK19: 51670 | FL19: 0 | FM19: 0 | FN19: 0 | FO19: 0 | FP19: 24 | FQ19: 1614.9 | FR19: 5 | FS19: 180 | FT19: 3 | FU19: 125 | FV19: 48573.53 | FW19: 32 | FX19: 687 | FY19: 70.70382824 | FZ19: 59.996875 | GA19: 3035.845625 | GB19: 0.03715695762 | GC19: 0 | GD19: 0 | GE19: 0.005263978138 | GF19: 0.125 | GG19: 0 | GH19: 0 | GI19: 0 | GJ19: 0 | GK19: 0.8411375592 | GL19: 0.75 | GM19: 0.6122406586 | GN19: 0.5924308588 | GO19: 0.09375488307 | GP19: 0.15625 | GQ19: 0.1404361594 | GR19: 0.2445414847 | GS19: 0.06510755769 | GT19: 0.09375 | GU19: 0.2420592039 | GV19: 0.1572052402
A20: Day 17 | B20: 2024-10-23 | C20: 40465 | AP20: Day 17 | AQ20: 2024-05-02 | AR20: 39822 | CE20: Day 17 | CF20: 2023-10-18 | CG20: 48752 | CH20: 0 | CI20: 0 | CJ20: 0 | CK20: 0 | CL20: 25 | CM20: 1275.74 | CN20: 0 | CO20: 0 | CP20: 0 | CQ20: 0 | CR20: 49572.07 | CS20: 25 | CT20: 699 | CU20: 70.91855508 | CV20: 51.0296 | CW20: 2916.004118 | CX20: 0.02616795208 | CY20: 0 | CZ20: 0 | DA20: 0.001008632482 | DB20: 0.04 | DC20: 0 | DD20: 0 | DE20: 0 | DF20: 0 | DG20: 1 | DH20: 1 | DI20: 0.6865041141 | DJ20: 0.6366237482 | DK20: 0 | DL20: 0 | DM20: 0.191172973 | DN20: 0.2761087268 | DO20: 0 | DP20: 0 | DQ20: 0.1213142804 | DR20: 0.08583690987 | DT20: Day 17 | FI20: Day 17 | FJ20: 2022-10-19 | FK20: 51670 | FL20: 0 | FM20: 0 | FN20: 0 | FO20: 0 | FP20: 14 | FQ20: 1234.47 | FR20: 4 | FS20: 299.89 | FT20: 0 | FU20: 0 | FV20: 50107.89 | FW20: 18 | FX20: 705 | FY20: 71.07502128 | FZ20: 85.24222222 | GA20: 2947.522941 | GB20: 0.02969537449 | GC20: 0 | GD20: 0 | GE20: 0.005102789201 | GF20: 0.2222222222 | GG20: 0 | GH20: 0 | GI20: 0 | GJ20: 0 | GK20: 0.8045504315 | GL20: 0.7777777778 | GM20: 0.6181294004 | GN20: 0.5971631206 | GO20: 0.1954495685 | GP20: 0.2222222222 | GQ20: 0.1421207319 | GR20: 0.2439716312 | GS20: 0 | GT20: 0 | GU20: 0.2346470785 | GV20: 0.1531914894
A21: Day 18 | B21: 2024-10-24 | C21: 40465 | AP21: Day 18 | AQ21: 2024-05-03 | AR21: 39822 | CE21: Day 18 | CF21: 2023-10-19 | CG21: 48752 | DT21: Day 18 | FI21: Day 18 | FJ21: 2022-10-20 | FK21: 51670 | FL21: 0 | FM21: 0 | FN21: 0 | FO21: 0 | FP21: 6 | FQ21: 919.69 | FR21: 1 | FS21: 64 | FT21: 1 | FU21: 50 | FV21: 51141.58 | FW21: 8 | FX21: 713 | FY21: 71.72732118 | FZ21: 129.21125 | GA21: 2841.198889 | GB21: 0.02000561254 | GC21: 0 | GD21: 0 | GE21: 0.004999649991 | GF21: 0.5 | GG21: 0 | GH21: 0 | GI21: 0 | GJ21: 0 | GK21: 0.8897154853 | GL21: 0.75 | GM21: 0.6236187853 | GN21: 0.5988779804 | GO21: 0.06191411352 | GP21: 0.125 | GQ21: 0.14049957 | GR21: 0.2426367461 | GS21: 0.04837040118 | GT21: 0.125 | GU21: 0.2308819947 | GV21: 0.1528751753
A22: Day 19 | B22: 2024-10-25 | C22: 40465 | AP22: Day 19 | AQ22: 2024-05-04 | AR22: 39822 | CE22: Day 19 | CF22: 2023-10-20 | CG22: 48752 | DT22: Day 19 | FI22: Day 19 | FJ22: 2022-10-21 | FK22: 51670 | FL22: 0 | FM22: 0 | FN22: 0 | FO22: 0 | FP22: 8 | FQ22: 370 | FR22: 1 | FS22: 50 | FT22: 0 | FU22: 0 | FV22: 51561.58 | FW22: 9 | FX22: 722 | FY22: 71.41493075 | FZ22: 46.66666667 | GA22: 2713.767368 | GB22: 0.008128507838 | GC22: 0 | GD22: 0 | GE22: 0.004958924843 | GF22: 0.4444444444 | GG22: 0 | GH22: 0 | GI22: 0 | GJ22: 0 | GK22: 0.880952381 | GL22: 0.8888888889 | GM22: 0.6257149218 | GN22: 0.6024930748 | GO22: 0.119047619 | GP22: 0.1111111111 | GQ22: 0.140324831 | GR22: 0.2409972299 | GS22: 0 | GT22: 0 | GU22: 0.2290013223 | GV22: 0.1509695291
A23: Day 20 | B23: 2024-10-26 | C23: 40465 | AP23: Day 20 | AQ23: 2024-05-05 | AR23: 39822 | CE23: Day 20 | CF23: 2023-10-21 | CG23: 48752 | DT23: Day 20 | FI23: Day 20 | FJ23: 2022-10-22 | FK23: 51670 | FL23: 0 | FM23: 0 | FN23: 0 | FO23: 0 | FP23: 2 | FQ23: 150 | FR23: 0 | FS23: 0 | FT23: 0 | FU23: 0 | FV23: 51711.58 | FW23: 2 | FX23: 724 | FY23: 71.42483425 | FZ23: 75 | GA23: 2585.579 | GB23: 0.002903038514 | GC23: 0 | GD23: 0 | GE23: 0.004944540468 | GF23: 2 | GG23: 0 | GH23: 0 | GI23: 0 | GJ23: 0 | GK23: 1 | GL23: 1 | GM23: 0.6268006122 | GN23: 0.6035911602 | GO23: 0 | GP23: 0 | GQ23: 0.1399177902 | GR23: 0.2403314917 | GS23: 0 | GT23: 0 | GU23: 0.2283370572 | GV23: 0.1505524862
A24: Day 21 | B24: 2024-10-27 | C24: 40465 | AP24: Day 21 | AQ24: 2024-05-06 | AR24: 39822 | CE24: Day 21 | DT24: Day 21 | FI24: Day 21
A25: Day 22 | B25: 2024-10-28 | C25: 40465 | AP25: Day 22 | AQ25: 2024-05-07 | AR25: 39822 | CE25: Day 22 | DT25: Day 22 | FI25: Day 22
A26: Day 23 | B26: 2024-10-29 | C26: 40465 | AP26: Day 23 | AQ26: 2024-05-08 | AR26: 39822 | CE26: Day 23 | DT26: Day 23 | FI26: Day 23
A27: Day 24 | B27: 2024-10-30 | C27: 40465 | AP27: Day 24 | AQ27: 2024-05-09 | AR27: 39822 | CE27: Day 24 | DT27: Day 24 | FI27: Day 24
A28: Day 25 | B28: 2024-10-31 | C28: 40465 | AP28: Day 25 | AQ28: 2024-05-10 | AR28: 39822 | CE28: Day 25 | DT28: Day 25 | FI28: Day 25
A29: Day 26 | B29: 2024-11-01 | C29: 40465 | AP29: Day 26 | AQ29: 2024-05-11 | AR29: 39822 | CE29: Day 26 | DT29: Day 26 | FI29: Day 26
A30: Day 27 | B30: 2024-11-02 | C30: 40465 | AP30: Day 27 | AQ30: 2024-05-12 | AR30: 39822 | CE30: Day 27 | DT30: Day 27 | FI30: Day 27
A31: Day 28 | B31: 2024-11-03 | C31: 40465 | AP31: Day 28 | AQ31: 2024-05-13 | AR31: 39822 | CE31: Day 28 | DT31: Day 28 | FI31: Day 28
A32: Day 29 | B32: 2024-11-04 | C32: 40465 | AP32: Day 29 | AQ32: 2024-05-14 | AR32: 39822 | CE32: Day 29 | DT32: Day 29 | FI32: Day 29
A33: Day 30 | B33: 2024-11-05 | C33: 40465 | AP33: Day 30 | AQ33: 2024-05-15 | AR33: 39822 | CE33: Day 30 | DT33: Day 30 | FI33: Day 30
A34: Day 31 | B34: 2024-11-06 | C34: 40465 | AP34: Day 31 | AQ34: 2024-05-16 | AR34: 39822 | CE34: Day 31 | DT34: Day 31 | FI34: Day 31
A35: Day 32 | B35: 2024-11-07 | C35: 40465 | AP35: Day 32 | AQ35: 2024-05-17 | AR35: 39822 | CE35: Day 32 | DT35: Day 32 | FI35: Day 32
A36: Day 33 | B36: 2024-11-08 | C36: 40465 | AP36: Day 33 | AQ36: 2024-05-18 | AR36: 39822 | CE36: Day 33 | DT36: Day 33 | FI36: Day 33
A37: Day 34 | B37: 2024-11-09 | C37: 40465 | AP37: Day 34 | AQ37: 2024-05-19 | AR37: 39822 | CE37: Day 34 | DT37: Day 34 | FI37: Day 34
A38: Day 35 | B38: 2024-11-10 | C38: 40465 | AP38: Day 35 | AQ38: 2024-05-20 | AR38: 39822 | CE38: Day 35 | DT38: Day 35 | FI38: Day 35
A39: Day 36 | B39: 2024-11-11 | C39: 40465 | AP39: Day 36 | AQ39: 2024-05-21 | AR39: 39822 | CE39: Day 36 | DT39: Day 36 | FI39: Day 36
A40: Day 37 | B40: 2024-11-12 | C40: 40465 | AP40: Day 37 | AQ40: 2024-05-22 | AR40: 39822 | CE40: Day 37 | DT40: Day 37 | FI40: Day 37
A41: Day 38 | B41: 2024-11-13 | C41: 40465 | AP41: Day 38 | AQ41: 2024-05-23 | AR41: 39822 | CE41: Day 38 | DT41: Day 38 | FI41: Day 38
A42: Day 39 | B42: 2024-11-14 | C42: 40465 | AP42: Day 39 | AQ42: 2024-05-24 | AR42: 39822 | CE42: Day 39 | DT42: Day 39 | FI42: Day 39
A43: Day 40 | B43: 2024-11-15 | C43: 40465 | AP43: Day 40 | AQ43: 2024-05-25 | AR43: 39822 | CE43: Day 40 | DT43: Day 40 | FI43: Day 40
A44: Day 41 | B44: 2024-11-16 | C44: 40465 | AP44: Day 41 | AQ44: 2024-05-26 | AR44: 39822 | CE44: Day 41 | DT44: Day 41 | FI44: Day 41
A45: Day 42 | B45: 2024-11-17 | C45: 40465 | AP45: Day 42 | AQ45: 2024-05-27 | AR45: 39822 | CE45: Day 42 | DT45: Day 42 | FI45: Day 42
A46: Day 43 | B46: 2024-11-18 | C46: 40465 | AP46: Day 43 | AQ46: 2024-05-28 | AR46: 39822 | CE46: Day 43 | DT46: Day 43 | FI46: Day 43
C47: 40465 | F47: =SUM(F3:F46) -> 0 | G47: =SUM(G3:G46) -> 0 | H47: 413 | I47: 32592.75 | J47: 105 | K47: 2991.83 | L47: 62 | M47: 5125.01 | N47: =LARGE(N3:N46,1) -> 40709.59 | AR47: 39822 | AU47: 0 | AV47: 0 | AW47: 373 | AX47: 28708.65 | AY47: 116 | AZ47: 3447.11 | BA47: 60 | BB47: 7739 | BC47: 39894.76 | CG47: 48752 | CJ47: =SUM(CJ3:CJ46) -> 0 | CK47: =SUM(CK3:CK46) -> 0 | CL47: 445 | CM47: 34031.43 | CN47: 193 | CO47: 9476.84 | CP47: 60 | CQ47: 6013.8 | CR47: =LARGE(CR3:CR46,1) -> 49572.07 | DT47: Day 44 | DV47: 50252 | DY47: 0 | DZ47: 0 | EA47: 449 | EB47: 33466.04 | EC47: 144 | ED47: 5118.36 | EE47: 76 | EF47: 7068.22 | EG47: 45902.62 | FI47: Day 44 | FK47: 51670 | FN47: 0 | FO47: 0 | FP47: 437 | FQ47: 32412.85 | FR47: 174 | FS47: 7235.37 | FT47: 109 | FU47: 11807.67 | FV47: 51711.58

Sheet Sanitized Raw Data
A1: donate_id | B1: donate_invoice | C1: donate_amount | D1: donate_method | E1: donate_affiliation | F1: donate_classyear | G1: donate_isthanked | H1: donate_transac_date | I1: donate_create_date | J1: donate_mod_date | K1: donate_num_recurring | L1: donate_pledge
A2: 60779 | B2: EF56-000001 | C2: 128 | D2: Personal Check | E2: 1 | F2: 1964 | G2: N | H2: 2024-04-17 | I2: 2024-04-30T01:59:28 | J2: 2024-04-30T01:59:28 | K2: 1 | L2: None. Donation by check.
A3: 60780 | B3: EF56-000002 | C3: 25 | D3: Personal Check | E3: 7 | G3: N | H3: 2024-04-16 | I3: 2024-04-30T02:03:38 | J3: 2024-04-30T02:03:38 | K3: 1 | L3: None. Donation by check.
A4: 60781 | B4: EF56-000003 | C4: 50 | D4: Personal Check | E4: 1 | F4: 1951 | G4: N | H4: 2024-04-17 | I4: 2024-04-30T02:05:36 | J4: 2024-04-30T02:05:36 | K4: 1 | L4: None. Donation by check.
A5: 60782 | B5: EF56-000004 | C5: 55 | D5: Personal Check | E5: 1 | F5: 1955 | G5: N | H5: 2024-04-16 | I5: 2024-04-30T02:07:16 | J5: 2024-04-30T02:07:16 | K5: 1 | L5: None. Donation by check.
A6: 60783 | B6: EF56-000005 | C6: 100 | D6: Personal Check | E6: 1 | F6: 1966 | G6: N | H6: 2024-04-20 | I6: 2024-04-30T02:09:00 | J6: 2024-04-30T02:09:00 | K6: 1 | L6: None. Donation by check.
A7: 60784 | B7: EF56-000006 | C7: 25 | D7: Personal Check | E7: 2 | F7: 2016 | G7: N | H7: 2024-04-18 | I7: 2024-04-30T02:10:32 | J7: 2024-04-30T02:10:32 | K7: 1 | L7: None. Donation by check.
A8: 60785 | B8: EF56-000007 | C8: 64 | D8: Personal Check | E8: 1 | F8: 1964 | G8: N | H8: 2024-04-20 | I8: 2024-04-30T02:11:59 | J8: 2024-04-30T02:11:59 | K8: 1 | L8: None. Donation by check.
A9: 60786 | B9: EF56-000008 | C9: 100 | D9: Personal Check | E9: 1 | F9: 1966 | G9: N | H9: 2024-04-17 | I9: 2024-04-30T02:15:37 | J9: 2024-04-30T02:15:37 | K9: 1 | L9: None. Donation by check.
A10: 60787 | B10: EF56-000009 | C10: 50 | D10: Personal Check | E10: 1 | F10: 1979 | G10: N | H10: 2024-04-16 | I10: 2024-04-30T02:18:31 | J10: 2024-04-30T02:18:31 | K10: 1 | L10: None. Donation by check.
A11: 60788 | B11: EF56-000010 | C11: 100 | D11: Personal Check | E11: 1 | F11: 1979 | G11: N | H11: 2024-04-16 | I11: 2024-04-30T02:21:17 | J11: 2024-04-30T02:21:17 | K11: 1 | L11: None. Donation by check.
A12: 60789 | B12: EF56-000011 | C12: 66 | D12: Personal Check | E12: 1 | F12: 1966 | G12: N | H12: 2024-04-16 | I12: 2024-04-30T02:22:57 | J12: 2024-04-30T02:22:57 | K12: 1 | L12: None. Donation by check.
A13: 60790 | B13: EF56-000012 | C13: 100 | D13: Personal Check | E13: 1 | F13: 1964 | G13: N | H13: 2024-04-13 | I13: 2024-04-30T02:25:19 | J13: 2024-04-30T02:25:19 | K13: 1 | L13: None. Donation by check.
A14: 60791 | B14: EF56-000013 | C14: 5 | D14: Personal Check | E14: 1 | F14: 1966 | G14: N | H14: 2024-04-26 | I14: 2024-04-30T02:27:02 | J14: 2024-04-30T02:27:02 | K14: 1 | L14: None. Donation by check.
A15: 60792 | B15: EF56-000014 | C15: 64 | D15: Personal Check | E15: 1 | F15: 1964 | G15: N | H15: 2024-04-20 | I15: 2024-04-30T02:28:45 | J15: 2024-04-30T02:28:45 | K15: 1 | L15: None. Donation by check.
A16: 60793 | B16: EF56-000015 | C16: 25 | D16: Personal Check | E16: 1 | F16: 1955 | G16: N | H16: 2024-04-16 | I16: 2024-04-30T02:30:47 | J16: 2024-04-30T02:30:47 | K16: 1 | L16: None. Donation by check.
A17: 60794 | B17: EF56-000016 | C17: 100 | D17: Personal Check | E17: 1 | F17: 1960 | G17: N | H17: 2024-04-16 | I17: 2024-04-30T02:32:13 | J17: 2024-04-30T02:32:42 | K17: 1 | L17: None. Donation by check.
A18: 60795 | B18: EF56-000017 | C18: 50 | D18: Personal Check | E18: 1 | F18: 1975 | G18: N | H18: 2024-04-16 | I18: 2024-04-30T02:34:43 | J18: 2024-04-30T02:34:43 | K18: 1 | L18: None. Donation by check.
A19: 60796 | B19: EF56-000018 | C19: 40 | D19: Personal Check | E19: 1 | F19: 1968 | G19: N | H19: 2024-04-17 | I19: 2024-04-30T02:36:20 | J19: 2024-04-30T02:36:20 | K19: 1 | L19: None. Donation by check.
A20: 60797 | B20: EF56-000019 | C20: 64 | D20: Personal Check | E20: 1 | F20: 1964 | G20: N | H20: 2024-04-18 | I20: 2024-04-30T02:37:51 | J20: 2024-04-30T02:37:51 | K20: 1 | L20: None. Donation by check.
A21: 60798 | B21: EF56-000020 | C21: 50 | D21: Personal Check | E21: 1 | F21: 1965 | G21: N | H21: 2024-04-20 | I21: 2024-04-30T02:39:15 | J21: 2024-04-30T02:39:15 | K21: 1 | L21: None. Donation by check.
A22: 60799 | B22: EF56-000021 | C22: 250 | D22: Personal Check | E22: 1 | F22: 1959 | G22: N | H22: 2024-04-19 | I22: 2024-04-30T02:40:32 | J22: 2024-04-30T02:40:32 | K22: 1 | L22: None. Donation by check.
A23: 60800 | B23: EF56-000022 | C23: 100 | D23: Personal Check | E23: 1 | F23: 1964 | G23: N | H23: 2024-04-18 | I23: 2024-04-30T02:44:20 | J23: 2024-04-30T02:44:20 | K23: 1 | L23: None. Donation by check.
A24: 60801 | B24: EF56-000023 | C24: 51 | D24: Personal Check | E24: 1 | F24: 1951 | G24: N | H24: 2024-04-22 | I24: 2024-05-01T07:57:23 | J24: 2024-05-01T07:57:23 | K24: 1 | L24: None. Donation by check.
A25: 60802 | B25: EF56-000024 | C25: 50 | D25: Personal Check | E25: 1 | F25: 1979 | G25: N | H25: 2024-04-23 | I25: 2024-05-01T08:00:21 | J25: 2024-05-01T08:00:21 | K25: 1 | L25: None. Donation by check.
A26: 60803 | B26: EF56-000025 | C26: 128 | D26: Personal Check | E26: 1 | F26: 1964 | G26: N | H26: 2024-04-21 | I26: 2024-05-01T08:02:00 | J26: 2024-05-01T08:02:00 | K26: 1 | L26: None. Donation by check.
A27: 60804 | B27: EF56-000026 | C27: 50 | D27: Personal Check | E27: 1 | F27: 1959 | G27: N | H27: 2024-04-19 | I27: 2024-05-01T08:04:33 | J27: 2024-05-01T08:04:33 | K27: 1 | L27: None. Donation by check.
A28: 60805 | B28: EF56-000027 | C28: 100 | D28: Personal Check | E28: 1 | F28: 1964 | G28: N | H28: 2024-04-20 | I28: 2024-05-01T08:06:31 | J28: 2024-05-01T08:06:31 | K28: 1 | L28: None. Donation by check.
A29: 60806 | B29: EF56-000028 | C29: 64 | D29: Personal Check | E29: 1 | F29: 1964 | G29: N | H29: 2024-04-20 | I29: 2024-05-03T11:23:46 | J29: 2024-05-03T11:23:46 | K29: 1 | L29: None. Donation by check.
A30: 60807 | B30: EF56-000029 | C30: 50 | D30: Personal Check | E30: 1 | F30: 1957 | G30: N | H30: 2024-04-17 | I30: 2024-05-03T11:25:25 | J30: 2024-05-03T11:25:25 | K30: 1 | L30: None. Donation by check.
A31: 60808 | B31: EF56-000030 | C31: 50 | D31: Personal Check | E31: 1 | F31: 1975 | G31: N | H31: 2024-04-26 | I31: 2024-05-03T11:27:29 | J31: 2024-05-03T11:27:29 | K31: 1 | L31: None. Donation by check.
A32: 60809 | B32: EF56-000031 | C32: 100 | D32: Personal Check | E32: 5 | F32: 1958 | G32: N | H32: 2024-04-24 | I32: 2024-05-06T13:17:14 | J32: 2024-05-06T13:17:14 | K32: 1 | L32: None. Donation by check.
A33: 60810 | B33: EF56-000032 | C33: 100 | D33: Personal Check | E33: 2 | F33: 2012 | G33: N | H33: 2024-05-02 | I33: 2024-05-06T13:19:41 | J33: 2024-05-06T13:19:41 | K33: 1 | L33: None. Donation by check.
A34: 60811 | B34: EF56-000033 | C34: 100 | D34: Personal Check | E34: 1 | F34: 1958 | G34: N | H34: 2024-04-20 | I34: 2024-05-15T14:41:16 | J34: 2024-05-15T14:41:16 | K34: 1 | L34: None. Donation by check.
A35: 60812 | B35: EF56-000034 | C35: 200 | D35: Personal Check | E35: 1 | F35: 1969 | G35: N | H35: 2024-04-25 | I35: 2024-05-21T13:29:27 | J35: 2024-05-21T13:29:27 | K35: 1 | L35: None. Donation by check.
A36: 60813 | B36: EF56-000035 | C36: 50 | D36: Personal Check | E36: 1 | F36: 1979 | G36: N | H36: 2024-05-08 | I36: 2024-05-21T13:31:56 | J36: 2024-05-21T13:31:56 | K36: 1 | L36: None. Donation by check.
A37: 60814 | B37: EF56-000036 | C37: 20.09 | D37: PayPal | E37: 3 | F37: 2009 | G37: N | H37: 2024-04-23 | I37: 2024-06-06T18:09:51 | J37: 2024-06-06T18:09:51 | K37: 1 | L37: None. Donation by check.
A38: 60815 | B38: EF56-000037 | C38: 2 | D38: PayPal | E38: 4 | G38: N | H38: 2024-04-23 | I38: 2024-06-06T18:11:08 | J38: 2024-06-06T18:11:08 | K38: 1 | L38: None. Donation by check.
A39: 60816 | B39: EF56-000038 | C39: 10 | D39: PayPal | E39: 1 | F39: 2007 | G39: N | H39: 2024-04-27 | I39: 2024-06-06T18:12:29 | J39: 2024-06-06T18:12:29 | K39: 1 | L39: None. Donation by check.
A40: 60817 | B40: EF56-000039 | C40: 10 | D40: PayPal | E40: 1 | F40: 1986 | G40: N | H40: 2024-04-29 | I40: 2024-06-06T18:13:29 | J40: 2024-06-06T18:13:29 | K40: 1 | L40: None. Donation by check.
A41: 60818 | B41: EF56-000040 | C41: 5 | D41: PayPal | E41: 1 | F41: 1956 | G41: N | H41: 2024-05-03 | I41: 2024-06-06T18:14:19 | J41: 2024-06-06T18:14:19 | K41: 1 | L41: None. Donation by check.
A42: 60819 | B42: EF56-000041 | C42: 58 | D42: PayPal | E42: 1 | F42: 1958 | G42: N | H42: 2024-05-04 | I42: 2024-06-06T18:15:12 | J42: 2024-06-06T18:15:12 | K42: 1 | L42: None. Donation by check.
A43: 60820 | B43: EF56-000042 | C43: 5 | D43: PayPal | E43: 1 | F43: 1978 | G43: N | H43: 2024-05-06 | I43: 2024-06-06T18:16:21 | J43: 2024-06-06T18:16:21 | K43: 1 | L43: None. Donation by check.
A44: 60821 | B44: EF56-000043 | C44: 5 | D44: PayPal | E44: 1 | F44: 1956 | G44: N | H44: 2024-05-09 | I44: 2024-06-06T18:18:04 | J44: 2024-06-06T18:18:04 | K44: 1 | L44: None. Donation by check.
A45: 60822 | B45: EF56-000044 | C45: 10 | D45: PayPal | E45: 1 | F45: 1981 | G45: N | H45: 2024-05-11 | I45: 2024-06-06T18:19:13 | J45: 2024-06-06T18:19:13 | K45: 1 | L45: None. Donation by check.
A46: 60823 | B46: EF56-000045 | C46: 10 | D46: PayPal | E46: 1 | F46: 1987 | G46: N | H46: 2024-05-14 | I46: 2024-06-06T18:20:27 | J46: 2024-06-06T18:20:27 | K46: 1 | L46: None. Donation by check.
A47: 60824 | B47: EF56-000046 | C47: 5 | D47: PayPal | E47: 1 | F47: 1985 | G47: N | H47: 2024-05-19 | I47: 2024-06-06T18:21:52 | J47: 2024-06-06T18:21:52 | K47: 1 | L47: None. Donation by check.
A48: 60825 | B48: EF56-000047 | C48: 20.09 | D48: PayPal | E48: 3 | F48: 2009 | G48: N | H48: 2024-05-23 | I48: 2024-06-06T18:23:04 | J48: 2024-06-06T18:23:04 | K48: 1 | L48: None. Donation by check.
A49: 60826 | B49: EF56-000048 | C49: 1 | D49: PayPal | E49: 4 | G49: N | H49: 2024-05-24 | I49: 2024-06-06T18:23:53 | J49: 2024-06-06T18:23:53 | K49: 1 | L49: None. Donation by check.
A50: 60827 | B50: EF56-000049 | C50: 10 | D50: PayPal | E50: 1 | F50: 2007 | G50: N | H50: 2024-05-27 | I50: 2024-06-06T18:24:45 | J50: 2024-06-06T18:24:45 | K50: 1 | L50: None. Donation by check.
A51: 60828 | B51: EF56-000050 | C51: 10 | D51: PayPal | E51: 1 | F51: 1986 | G51: N | H51: 2024-05-29 | I51: 2024-06-06T18:25:53 | J51: 2024-06-06T18:25:53 | K51: 1 | L51: None. Donation by check.
A52: 60829 | B52: EF56-000051 | C52: 5 | D52: PayPal | E52: 1 | F52: 1956 | G52: N | H52: 2024-06-03 | I52: 2024-06-06T18:26:41 | J52: 2024-06-06T18:26:41 | K52: 1 | L52: None. Donation by check.
A53: 60830 | B53: EF56-000052 | C53: 58 | D53: PayPal | E53: 1 | F53: 1958 | G53: N | H53: 2024-06-04 | I53: 2024-06-06T18:27:49 | J53: 2024-06-06T18:27:49 | K53: 1 | L53: None. Donation by check.
A54: 60831 | B54: EF56-000053 | C54: 5 | D54: PayPal | E54: 1 | F54: 1978 | G54: N | H54: 2024-06-06 | I54: 2024-06-06T18:28:43 | J54: 2024-06-06T18:28:43 | K54: 1 | L54: None. Donation by check.
A55: 60832 | B55: EF56-000054 | C55: 100 | D55: Personal Check | E55: 5 | F55: 1949 | G55: N | H55: 2024-06-27 | I55: 2024-07-11T02:58:12 | J55: 2024-07-11T02:58:12 | K55: 1 | L55: None. Donation by check.
A56: 60833 | B56: EF56-000055 | C56: 100 | D56: Personal Check | E56: 1 | F56: 1963 | G56: N | H56: 2024-08-05 | I56: 2024-08-13T21:43:32 | J56: 2024-08-13T21:43:32 | K56: 1 | L56: None. Donation by check.
A57: 60834 | B57: EF56-000056 | C57: 100 | D57: Personal Check | E57: 1 | F57: 1968 | G57: N | H57: 2024-08-14 | I57: 2024-08-30T22:45:49 | J57: 2024-09-05T13:04:14 | K57: 1 | L57: None. Donation by check.
A58: 60835 | B58: EF56-000057 | C58: 64 | D58: Personal Check | E58: 1 | F58: 1964 | G58: N | H58: 2024-08-27 | I58: 2024-09-05T12:56:12 | J58: 2024-09-05T12:56:12 | K58: 1 | L58: None. Donation by check.
A59: 60836 | B59: EF56-000058 | C59: 250 | D59: Personal Check | E59: 1 | F59: 1955 | G59: N | H59: 2024-08-23 | I59: 2024-09-09T12:24:00 | J59: 2024-09-09T12:24:00 | K59: 1 | L59: None. Donation by check.
A60: 60837 | B60: EF56-000059 | C60: 19.58 | D60: Personal Check | E60: 1 | F60: 1958 | G60: N | H60: 2024-09-16 | I60: 2024-09-24T14:54:45 | J60: 2024-09-24T14:54:45 | K60: 1 | L60: None. Donation by check.
A61: 60838 | B61: EF56-000060 | C61: 5 | D61: PayPal | E61: 1 | F61: 1956 | G61: N | H61: 2024-06-09 | I61: 2024-10-05T14:05:14 | J61: 2024-10-05T14:05:14 | K61: 1 | L61: None. Donation by check.
A62: 60839 | B62: EF56-000061 | C62: 10 | D62: PayPal | E62: 1 | F62: 1981 | G62: N | H62: 2024-06-11 | I62: 2024-10-05T14:06:25 | J62: 2024-10-05T14:06:25 | K62: 1 | L62: None. Donation by check.
A63: 60840 | B63: EF56-000062 | C63: 10 | D63: PayPal | E63: 1 | F63: 1987 | G63: N | H63: 2024-06-14 | I63: 2024-10-05T14:07:41 | J63: 2024-10-05T14:07:41 | K63: 1 | L63: None. Donation by check.
A64: 60841 | B64: EF56-000063 | C64: 5 | D64: PayPal | E64: 1 | F64: 1985 | G64: N | H64: 2024-06-19 | I64: 2024-10-05T14:09:41 | J64: 2024-10-05T14:09:41 | K64: 1 | L64: None. Donation by check.
A65: 60842 | B65: EF56-000064 | C65: 20.09 | D65: PayPal | E65: 3 | F65: 2009 | G65: N | H65: 2024-06-23 | I65: 2024-10-05T14:10:37 | J65: 2024-10-05T14:10:37 | K65: 1 | L65: None. Donation by check.
A66: 60843 | B66: EF56-000065 | C66: 10 | D66: PayPal | E66: 1 | F66: 2007 | G66: N | H66: 2024-06-27 | I66: 2024-10-05T14:11:40 | J66: 2024-10-05T14:11:40 | K66: 1 | L66: None. Donation by check.
A67: 60844 | B67: EF56-000066 | C67: 10 | D67: PayPal | E67: 1 | F67: 1986 | G67: N | H67: 2024-06-29 | I67: 2024-10-05T14:13:34 | J67: 2024-10-05T14:13:34 | K67: 1 | L67: None. Donation by check.
A68: 60845 | B68: EF56-000067 | C68: 5 | D68: PayPal | E68: 1 | F68: 1956 | G68: N | H68: 2024-07-03 | I68: 2024-10-05T14:14:34 | J68: 2024-10-05T14:14:34 | K68: 1 | L68: None. Donation by check.
A69: 60846 | B69: EF56-000068 | C69: 58 | D69: PayPal | E69: 1 | F69: 1958 | G69: N | H69: 2024-07-04 | I69: 2024-10-05T14:16:36 | J69: 2024-10-05T14:16:36 | K69: 1 | L69: None. Donation by check.
A70: 60847 | B70: EF56-000069 | C70: 5 | D70: PayPal | E70: 1 | F70: 1978 | G70: N | H70: 2024-07-06 | I70: 2024-10-05T14:17:29 | J70: 2024-10-05T14:17:29 | K70: 1 | L70: None. Donation by check.
A71: 60848 | B71: EF56-000070 | C71: 5 | D71: PayPal | E71: 1 | F71: 1956 | G71: N | H71: 2024-07-09 | I71: 2024-10-05T14:18:35 | J71: 2024-10-05T14:18:35 | K71: 1 | L71: None. Donation by check.
A72: 60849 | B72: EF56-000071 | C72: 10 | D72: PayPal | E72: 1 | F72: 1981 | G72: N | H72: 2024-07-11 | I72: 2024-10-05T14:33:35 | J72: 2024-10-05T14:33:35 | K72: 1 | L72: None. Donation by check.
A73: 60850 | B73: EF56-000072 | C73: 10 | D73: PayPal | E73: 1 | F73: 1987 | G73: N | H73: 2024-07-14 | I73: 2024-10-05T14:38:33 | J73: 2024-10-05T14:38:33 | K73: 1 | L73: None. Donation by check.
A74: 60851 | B74: EF56-000073 | C74: 5 | D74: PayPal | E74: 1 | F74: 1985 | G74: N | H74: 2024-07-19 | I74: 2024-10-05T14:39:19 | J74: 2024-10-05T14:39:19 | K74: 1 | L74: None. Donation by check.
A75: 60852 | B75: EF56-000074 | C75: 20.09 | D75: PayPal | E75: 3 | F75: 2009 | G75: N | H75: 2024-07-23 | I75: 2024-10-05T14:41:01 | J75: 2024-10-05T14:41:01 | K75: 1 | L75: None. Donation by check.
A76: 60853 | B76: EF56-000075 | C76: 1 | D76: PayPal | E76: 4 | G76: N | H76: 2024-07-23 | I76: 2024-10-05T14:42:05 | J76: 2024-10-05T14:42:05 | K76: 1 | L76: None. Donation by check.
A77: 60854 | B77: EF56-000076 | C77: 10 | D77: PayPal | E77: 1 | F77: 2007 | G77: N | H77: 2024-07-27 | I77: 2024-10-05T14:42:53 | J77: 2024-10-05T14:42:53 | K77: 1 | L77: None. Donation by check.
A78: 60855 | B78: EF56-000077 | C78: 10 | D78: PayPal | E78: 1 | F78: 1986 | G78: N | H78: 2024-07-29 | I78: 2024-10-05T14:43:51 | J78: 2024-10-05T14:43:51 | K78: 1 | L78: None. Donation by check.
A79: 60856 | B79: EF56-000078 | C79: 5 | D79: PayPal | E79: 1 | F79: 1956 | G79: N | H79: 2024-08-03 | I79: 2024-10-05T14:44:34 | J79: 2024-10-05T14:44:34 | K79: 1 | L79: None. Donation by check.
A80: 60857 | B80: EF56-000079 | C80: 58 | D80: PayPal | E80: 1 | F80: 1958 | G80: N | H80: 2024-08-04 | I80: 2024-10-05T14:45:28 | J80: 2024-10-05T14:45:28 | K80: 1 | L80: None. Donation by check.
A81: 60858 | B81: EF56-000080 | C81: 5 | D81: PayPal | E81: 1 | F81: 1978 | G81: N | H81: 2024-08-06 | I81: 2024-10-05T14:46:16 | J81: 2024-10-05T14:46:16 | K81: 1 | L81: None. Donation by check.
A82: 60859 | B82: EF56-000081 | C82: 5 | D82: PayPal | E82: 1 | F82: 1956 | G82: N | H82: 2024-08-09 | I82: 2024-10-05T14:47:07 | J82: 2024-10-05T14:47:07 | K82: 1 | L82: None. Donation by check.
A83: 60860 | B83: EF56-000082 | C83: 10 | D83: PayPal | E83: 1 | F83: 1981 | G83: N | H83: 2024-08-11 | I83: 2024-10-05T14:48:03 | J83: 2024-10-05T14:48:03 | K83: 1 | L83: None. Donation by check.
A84: 60861 | B84: EF56-000083 | C84: 10 | D84: PayPal | E84: 1 | F84: 1987 | G84: N | H84: 2024-08-14 | I84: 2024-10-05T14:49:03 | J84: 2024-10-05T14:49:03 | K84: 1 | L84: None. Donation by check.
A85: 60862 | B85: EF56-000084 | C85: 5 | D85: PayPal | E85: 1 | F85: 1985 | G85: N | H85: 2024-08-19 | I85: 2024-10-05T14:51:53 | J85: 2024-10-05T14:51:53 | K85: 1 | L85: None. Donation by check.
A86: 60863 | B86: EF56-000085 | C86: 20.09 | D86: PayPal | E86: 3 | F86: 2009 | G86: N | H86: 2024-08-23 | I86: 2024-10-05T14:53:43 | J86: 2024-10-05T14:53:43 | K86: 1 | L86: None. Donation by check.
A87: 60864 | B87: EF56-000086 | C87: 10 | D87: PayPal | E87: 1 | F87: 2007 | G87: N | H87: 2024-08-27 | I87: 2024-10-05T14:54:37 | J87: 2024-10-05T14:54:37 | K87: 1 | L87: None. Donation by check.
A88: 60865 | B88: EF56-000087 | C88: 10 | D88: PayPal | E88: 1 | F88: 1986 | G88: N | H88: 2024-08-29 | I88: 2024-10-05T14:55:24 | J88: 2024-10-05T14:55:24 | K88: 1 | L88: None. Donation by check.
A89: 60866 | B89: EF56-000088 | C89: 5 | D89: PayPal | E89: 1 | F89: 1956 | G89: N | H89: 2024-09-03 | I89: 2024-10-05T14:56:04 | J89: 2024-10-05T14:56:04 | K89: 1 | L89: None. Donation by check.
A90: 60867 | B90: EF56-000089 | C90: 58 | D90: PayPal | E90: 1 | F90: 1958 | G90: N | H90: 2024-09-04 | I90: 2024-10-05T14:56:57 | J90: 2024-10-05T14:56:57 | K90: 1 | L90: None. Donation by check.
A91: 60868 | B91: EF56-000090 | C91: 5 | D91: PayPal | E91: 1 | F91: 1978 | G91: N | H91: 2024-09-06 | I91: 2024-10-05T14:58:03 | J91: 2024-10-05T14:58:03 | K91: 1 | L91: None. Donation by check.
A92: 60869 | B92: EF56-000091 | C92: 5 | D92: PayPal | E92: 1 | F92: 1956 | G92: N | H92: 2024-09-09 | I92: 2024-10-05T14:58:54 | J92: 2024-10-05T14:58:54 | K92: 1 | L92: None. Donation by check.
A93: 60870 | B93: EF56-000092 | C93: 10 | D93: PayPal | E93: 1 | F93: 1981 | G93: N | H93: 2024-09-11 | I93: 2024-10-05T14:59:46 | J93: 2024-10-05T14:59:46 | K93: 1 | L93: None. Donation by check.
A94: 60871 | B94: EF56-000093 | C94: 10 | D94: PayPal | E94: 1 | F94: 1987 | G94: N | H94: 2024-09-14 | I94: 2024-10-05T15:00:44 | J94: 2024-10-05T15:00:44 | K94: 1 | L94: None. Donation by check.
A95: 60872 | B95: EF56-000094 | C95: 5 | D95: PayPal | E95: 1 | F95: 1985 | G95: N | H95: 2024-09-19 | I95: 2024-10-05T15:01:33 | J95: 2024-10-05T15:01:33 | K95: 1 | L95: None. Donation by check.
A96: 60873 | B96: EF56-000095 | C96: 20.09 | D96: PayPal | E96: 3 | F96: 2009 | G96: N | H96: 2024-09-23 | I96: 2024-10-05T15:02:26 | J96: 2024-10-05T15:02:26 | K96: 1 | L96: None. Donation by check.
A97: 60874 | B97: EF56-000096 | C97: 10 | D97: PayPal | E97: 1 | F97: 2007 | G97: N | H97: 2024-09-27 | I97: 2024-10-05T15:03:12 | J97: 2024-10-05T15:03:12 | K97: 1 | L97: None. Donation by check.
A98: 60875 | B98: EF56-000097 | C98: 10 | D98: PayPal | E98: 1 | F98: 1986 | G98: N | H98: 2024-09-29 | I98: 2024-10-05T15:04:15 | J98: 2024-10-05T15:04:15 | K98: 1 | L98: None. Donation by check.
A99: 60876 | B99: EF56-000098 | C99: 5 | D99: PayPal | E99: 1 | F99: 1956 | G99: N | H99: 2024-10-03 | I99: 2024-10-05T15:05:02 | J99: 2024-10-05T15:05:02 | K99: 1 | L99: None. Donation by check.
A100: 60877 | B100: EF56-000099 | C100: 58 | D100: PayPal | E100: 1 | F100: 1958 | G100: N | H100: 2024-10-04 | I100: 2024-10-05T15:05:44 | J100: 2024-10-05T15:05:44 | K100: 1 | L100: None. Donation by check.
A101: 60878 | B101: F56-000003 | C101: 25 | D101: CC | E101: 1 | F101: 1964 | G101: N | H101: 2024-10-07T20:21:19 | I101: 2024-10-07T20:21:21 | J101: 2024-10-07T20:21:21 | K101: 1 | L101: 25
A102: 60879 | B102: F56-000004 | C102: 35 | D102: CC | F102: 1959 | G102: N | H102: 2024-10-07T20:33:01 | I102: 2024-10-07T20:33:03 | J102: 2024-10-07T20:33:03 | K102: 1 | L102: 35
A103: 60880 | B103: F56-000005 | C103: 25 | D103: CC | E103: 1 | F103: 1956 | G103: N | H103: 2024-10-07T20:33:34 | I103: 2024-10-07T20:33:35 | J103: 2024-10-07T20:33:35 | K103: 1 | L103: 25
A104: 60881 | B104: F56-000006 | C104: 79 | D104: CC | E104: 1 | F104: 1979 | G104: N | H104: 2024-10-07T20:34:22 | I104: 2024-10-07T20:34:23 | J104: 2024-10-07T20:34:23 | K104: 1 | L104: 79
A105: 60882 | B105: F56-000007 | C105: 50 | D105: CC | E105: 1 | F105: 1966 | G105: N | H105: 2024-10-07T20:36:11 | I105: 2024-10-07T20:36:12 | J105: 2024-10-07T20:36:12 | K105: 1 | L105: 50
A106: 60883 | B106: F56-000019 | C106: 75 | D106: CC | E106: 2 | F106: 2013 | G106: N | H106: 2024-10-07T21:10:59 | I106: 2024-10-07T21:11:00 | J106: 2024-10-07T21:11:00 | K106: 1 | L106: 75
A107: 60884 | B107: F56-000020 | C107: 50 | D107: CC | E107: 1 | F107: 1978 | G107: N | H107: 2024-10-07T21:15:15 | I107: 2024-10-07T21:15:17 | J107: 2024-10-07T21:15:17 | K107: 1 | L107: 50
A108: 60885 | B108: F56-000021 | C108: 50 | D108: CC | E108: 1 | F108: 1963 | G108: N | H108: 2024-10-07T21:33:42 | I108: 2024-10-07T21:33:44 | J108: 2024-10-07T21:33:44 | K108: 1 | L108: 50
A109: 60886 | B109: F56-000022 | C109: 100 | D109: CC | E109: 1 | F109: 1965 | G109: N | H109: 2024-10-07T21:36:09 | I109: 2024-10-07T21:36:11 | J109: 2024-10-07T21:36:11 | K109: 1 | L109: 100
A110: 60887 | B110: F56-000023 | C110: 100 | D110: CC | E110: 1 | F110: 1962 | G110: N | H110: 2024-10-07T21:36:44 | I110: 2024-10-07T21:36:45 | J110: 2024-10-07T21:36:45 | K110: 1 | L110: 100
A111: 60888 | B111: F56-000024 | C111: 79 | D111: CC | E111: 1 | F111: 1979 | G111: N | H111: 2024-10-07T21:37:37 | I111: 2024-10-07T21:37:38 | J111: 2024-10-07T21:37:38 | K111: 1 | L111: 79
A112: 60889 | B112: F56-000025 | C112: 200 | D112: CC | F112: 1964 | G112: N | H112: 2024-10-07T21:43:33 | I112: 2024-10-07T21:43:34 | J112: 2024-10-07T21:43:34 | K112: 1 | L112: 200
A113: 60890 | B113: F56-000026 | C113: 40 | D113: CC | E113: 2 | F113: 2008 | G113: N | H113: 2024-10-07T21:45:52 | I113: 2024-10-07T21:45:53 | J113: 2024-10-07T21:45:53 | K113: 1 | L113: 40
A114: 60891 | B114: F56-000027 | C114: 19.79 | D114: CC | E114: 1 | F114: 1979 | G114: N | H114: 2024-10-07T22:05:16 | I114: 2024-10-07T22:05:17 | J114: 2024-10-07T22:05:17 | K114: 1 | L114: 19.79
A115: 60892 | B115: F56-000028 | C115: 197.9 | D115: CC | E115: 1 | F115: 1979 | G115: N | H115: 2024-10-07T22:06:19 | I115: 2024-10-07T22:06:20 | J115: 2024-10-07T22:06:20 | K115: 1 | L115: 197.9
A116: 60893 | B116: F56-000029 | C116: 19.79 | D116: CC | E116: 1 | F116: 1979 | G116: N | H116: 2024-10-07T22:07:02 | I116: 2024-10-07T22:07:03 | J116: 2024-10-07T22:07:03 | K116: 1 | L116: 19.79
A117: 60894 | B117: F56-000030 | C117: 25 | D117: CC | E117: 1 | F117: 1969 | G117: N | H117: 2024-10-07T22:14:59 | I117: 2024-10-07T22:15:00 | J117: 2024-10-07T22:15:00 | K117: 1 | L117: 25
A118: 60895 | B118: F56-000031 | C118: 25 | D118: CC | E118: 1 | F118: 1968 | G118: N | H118: 2024-10-07T22:20:40 | I118: 2024-10-07T22:20:41 | J118: 2024-10-07T22:20:41 | K118: 1 | L118: 25
A119: 60896 | B119: F56-000032 | C119: 234.69 | D119: CC | E119: 1 | F119: 1969 | G119: N | H119: 2024-10-07T22:56:28 | I119: 2024-10-07T22:56:29 | J119: 2024-10-07T22:56:29 | K119: 1 | L119: 234.69
A120: 60897 | B120: F56-000033 | C120: 100 | D120: CC | E120: 1 | F120: 1956 | G120: N | H120: 2024-10-07T23:26:40 | I120: 2024-10-07T23:26:42 | J120: 2024-10-07T23:26:42 | K120: 1 | L120: 100
A121: 60898 | B121: F56-000034 | C121: 64 | D121: CC | E121: 1 | F121: 1964 | G121: N | H121: 2024-10-07T23:36:44 | I121: 2024-10-07T23:36:46 | J121: 2024-10-07T23:36:46 | K121: 1 | L121: 64
A122: 60899 | B122: F56-000037 | C122: 65 | D122: CC | E122: 1 | F122: 1965 | G122: N | H122: 2024-10-07T23:52:55 | I122: 2024-10-07T23:52:56 | J122: 2024-10-07T23:52:56 | K122: 1 | L122: 65
A123: 60900 | B123: F56-000038 | C123: 250 | D123: CC | E123: 1 | F123: 1967 | G123: N | H123: 2024-10-07T23:53:39 | I123: 2024-10-07T23:53:41 | J123: 2024-10-07T23:53:41 | K123: 1 | L123: 250
A124: 60901 | B124: F56-000039 | C124: 50 | D124: CC | F124: 1979 | G124: N | H124: 2024-10-08T02:54:57 | I124: 2024-10-08T02:54:59 | J124: 2024-10-08T02:54:59 | K124: 1 | L124: 50
A125: 60902 | B125: F56-000040 | C125: 50 | D125: CC | E125: 1 | F125: 1970 | G125: N | H125: 2024-10-08T03:36:28 | I125: 2024-10-08T03:36:29 | J125: 2024-10-08T03:36:29 | K125: 1 | L125: 50
A126: 60903 | B126: F56-000041 | C126: 25 | D126: CC | E126: 1 | F126: 1989 | G126: N | H126: 2024-10-08T04:24:52 | I126: 2024-10-08T04:24:53 | J126: 2024-10-08T04:24:53 | K126: 1 | L126: 25
A127: 60904 | B127: F56-000042 | C127: 50 | D127: CC | E127: 1 | F127: 1966 | G127: N | H127: 2024-10-08T04:33:42 | I127: 2024-10-08T04:33:44 | J127: 2024-10-08T04:33:44 | K127: 1 | L127: 50
A128: 60905 | B128: F56-000043 | C128: 50 | D128: CC | E128: 1 | F128: 1980 | G128: N | H128: 2024-10-08T05:16:19 | I128: 2024-10-08T05:16:20 | J128: 2024-10-08T05:16:20 | K128: 1 | L128: 50
A129: 60906 | B129: F56-000044 | C129: 64 | D129: CC | E129: 1 | F129: 1964 | G129: N | H129: 2024-10-08T05:27:55 | I129: 2024-10-08T05:27:57 | J129: 2024-10-08T05:27:57 | K129: 1 | L129: 64
A130: 60907 | B130: F56-000045 | C130: 25 | D130: CC | E130: 1 | F130: 1958 | G130: N | H130: 2024-10-08T05:31:47 | I130: 2024-10-08T05:31:49 | J130: 2024-10-08T05:31:49 | K130: 1 | L130: 25
A131: 60908 | B131: F56-000046 | C131: 77 | D131: CC | E131: 1 | F131: 1977 | G131: N | H131: 2024-10-08T05:46:41 | I131: 2024-10-08T05:46:42 | J131: 2024-10-08T05:46:42 | K131: 1 | L131: 77
A132: 60909 | B132: F56-000048 | C132: 100 | D132: CC | E132: 1 | F132: 1960 | G132: N | H132: 2024-10-08T06:11:05 | I132: 2024-10-08T06:11:07 | J132: 2024-10-08T06:11:07 | K132: 1 | L132: 100
A133: 60910 | B133: F56-000049 | C133: 19.89 | D133: CC | E133: 1 | F133: 1989 | G133: N | H133: 2024-10-08T06:29:05 | I133: 2024-10-08T06:29:07 | J133: 2024-10-08T06:29:07 | K133: 1 | L133: 19.89
A134: 60911 | B134: F56-000050 | C134: 100 | D134: CC | F134: 1975 | G134: N | H134: 2024-10-08T06:36:27 | I134: 2024-10-08T06:36:28 | J134: 2024-10-08T06:36:28 | K134: 1 | L134: 100
A135: 60912 | B135: F56-000051 | C135: 100 | D135: CC | E135: 1 | F135: 1987 | G135: N | H135: 2024-10-08T06:49:07 | I135: 2024-10-08T06:49:08 | J135: 2024-10-08T06:49:08 | K135: 1 | L135: 100
A136: 60913 | B136: F56-000052 | C136: 19.89 | D136: CC | E136: 1 | F136: 1989 | G136: N | H136: 2024-10-08T06:50:38 | I136: 2024-10-08T06:50:39 | J136: 2024-10-08T06:50:39 | K136: 1 | L136: 19.89
A137: 60914 | B137: F56-000053 | C137: 100 | D137: CC | E137: 1 | F137: 1966 | G137: N | H137: 2024-10-08T06:52:39 | I137: 2024-10-08T06:52:41 | J137: 2024-10-08T06:52:41 | K137: 1 | L137: 100
A138: 60915 | B138: F56-000054 | C138: 1000 | D138: CC | E138: 1 | F138: 1966 | G138: N | H138: 2024-10-08T06:55:20 | I138: 2024-10-08T06:55:22 | J138: 2024-10-08T06:55:22 | K138: 1 | L138: 1000
A139: 60916 | B139: F56-000055 | C139: 19.79 | D139: CC | E139: 1 | F139: 1979 | G139: N | H139: 2024-10-08T06:57:07 | I139: 2024-10-08T06:57:08 | J139: 2024-10-08T06:57:08 | K139: 1 | L139: 19.79
A140: 60917 | B140: F56-000056 | C140: 100 | D140: CC | E140: 1 | F140: 1989 | G140: N | H140: 2024-10-08T07:13:42 | I140: 2024-10-08T07:13:43 | J140: 2024-10-08T07:13:43 | K140: 1 | L140: 100
A141: 60918 | B141: F56-000057 | C141: 50 | D141: CC | E141: 1 | F141: 1975 | G141: N | H141: 2024-10-08T07:17:37 | I141: 2024-10-08T07:17:38 | J141: 2024-10-08T07:17:38 | K141: 1 | L141: 50
A142: 60919 | B142: F56-000058 | C142: 55 | D142: CC | E142: 1 | F142: 1955 | G142: N | H142: 2024-10-08T07:23:34 | I142: 2024-10-08T07:23:35 | J142: 2024-10-08T07:23:35 | K142: 1 | L142: 55
A143: 60920 | B143: F56-000059 | C143: 43 | D143: CC | E143: 1 | F143: 1963 | G143: N | H143: 2024-10-08T07:28:39 | I143: 2024-10-08T07:28:41 | J143: 2024-10-08T07:28:41 | K143: 1 | L143: 43
A144: 60921 | B144: F56-000060 | C144: 78 | D144: CC | E144: 1 | F144: 1978 | G144: N | H144: 2024-10-08T07:31:47 | I144: 2024-10-08T07:31:48 | J144: 2024-10-08T07:31:48 | K144: 1 | L144: 78
A145: 60922 | B145: F56-000061 | C145: 25 | D145: CC | E145: 1 | F145: 1969 | G145: N | H145: 2024-10-08T07:35:37 | I145: 2024-10-08T07:35:38 | J145: 2024-10-08T07:35:38 | K145: 1 | L145: 25
A146: 60923 | B146: F56-000062 | C146: 105 | D146: CC | F146: 1966 | G146: N | H146: 2024-10-08T07:37:40 | I146: 2024-10-08T07:37:41 | J146: 2024-10-08T07:37:41 | K146: 1 | L146: 105
A147: 60924 | B147: F56-000063 | C147: 19.79 | D147: CC | E147: 1 | F147: 1979 | G147: N | H147: 2024-10-08T07:38:31 | I147: 2024-10-08T07:38:33 | J147: 2024-10-08T07:38:33 | K147: 1 | L147: 19.79
A148: 60925 | B148: F56-000064 | C148: 50 | D148: CC | E148: 1 | F148: 1986 | G148: N | H148: 2024-10-08T07:38:38 | I148: 2024-10-08T07:38:39 | J148: 2024-10-08T07:38:39 | K148: 1 | L148: 50
A149: 60926 | B149: F56-000065 | C149: 250 | D149: CC | E149: 1 | F149: 1978 | G149: N | H149: 2024-10-08T07:39:42 | I149: 2024-10-08T07:39:44 | J149: 2024-10-08T07:39:44 | K149: 1 | L149: 250
A150: 60927 | B150: F56-000066 | C150: 69.69 | D150: CC | E150: 1 | F150: 1969 | G150: N | H150: 2024-10-08T07:42:33 | I150: 2024-10-08T07:42:34 | J150: 2024-10-08T07:42:34 | K150: 1 | L150: 69.69
A151: 60928 | B151: F56-000067 | C151: 50 | D151: CC | E151: 1 | F151: 1975 | G151: N | H151: 2024-10-08T07:43:02 | I151: 2024-10-08T07:43:03 | J151: 2024-10-08T07:43:03 | K151: 1 | L151: 50
A152: 60929 | B152: F56-000068 | C152: 50 | D152: CC | E152: 1 | F152: 1969 | G152: N | H152: 2024-10-08T07:50:25 | I152: 2024-10-08T07:50:26 | J152: 2024-10-08T07:50:26 | K152: 1 | L152: 50
A153: 60930 | B153: F56-000069 | C153: 57 | D153: CC | E153: 1 | F153: 1957 | G153: N | H153: 2024-10-08T07:53:13 | I153: 2024-10-08T07:53:14 | J153: 2024-10-08T07:53:14 | K153: 1 | L153: 57
A154: 60931 | B154: F56-000070 | C154: 19.79 | D154: CC | E154: 1 | F154: 1979 | G154: N | H154: 2024-10-08T07:53:58 | I154: 2024-10-08T07:53:59 | J154: 2024-10-08T07:53:59 | K154: 1 | L154: 19.79
A155: 60932 | B155: F56-000071 | C155: 19.79 | D155: CC | E155: 1 | F155: 1979 | G155: N | H155: 2024-10-08T08:07:21 | I155: 2024-10-08T08:07:22 | J155: 2024-10-08T08:07:22 | K155: 1 | L155: 19.79
A156: 60933 | B156: F56-000072 | C156: 19.79 | D156: CC | E156: 1 | F156: 1979 | G156: N | H156: 2024-10-08T08:07:22 | I156: 2024-10-08T08:07:23 | J156: 2024-10-08T08:07:23 | K156: 1 | L156: 19.79
A157: 60934 | B157: F56-000073 | C157: 75 | D157: CC | E157: 1 | F157: 1969 | G157: N | H157: 2024-10-08T08:12:44 | I157: 2024-10-08T08:12:46 | J157: 2024-10-08T08:12:46 | K157: 1 | L157: 75
A158: 60935 | B158: F56-000074 | C158: 19.8 | D158: CC | E158: 1 | F158: 1980 | G158: N | H158: 2024-10-08T08:12:45 | I158: 2024-10-08T08:12:46 | J158: 2024-10-08T08:12:46 | K158: 1 | L158: 19.8
A159: 60936 | B159: F56-000075 | C159: 25 | D159: CC | E159: 1 | F159: 1989 | G159: N | H159: 2024-10-08T08:15:26 | I159: 2024-10-08T08:15:28 | J159: 2024-10-08T08:15:28 | K159: 1 | L159: 25
A160: 60937 | B160: F56-000076 | C160: 30 | D160: CC | E160: 1 | F160: 1978 | G160: N | H160: 2024-10-08T08:21:41 | I160: 2024-10-08T08:21:42 | J160: 2024-10-08T08:21:42 | K160: 1 | L160: 30
A161: 60938 | B161: F56-000077 | C161: 25 | D161: CC | E161: 1 | F161: 1996 | G161: N | H161: 2024-10-08T08:25:45 | I161: 2024-10-08T08:25:46 | J161: 2024-10-08T08:25:46 | K161: 1 | L161: 25
A162: 60939 | B162: F56-000078 | C162: 100 | D162: CC | E162: 1 | F162: 1964 | G162: N | H162: 2024-10-08T08:26:58 | I162: 2024-10-08T08:26:59 | J162: 2024-10-08T08:26:59 | K162: 1 | L162: 100
A163: 60940 | B163: F56-000079 | C163: 25 | D163: CC | E163: 1 | F163: 1979 | G163: N | H163: 2024-10-08T08:27:16 | I163: 2024-10-08T08:27:17 | J163: 2024-10-08T08:27:17 | K163: 1 | L163: 25
A164: 60941 | B164: F56-000080 | C164: 100 | D164: CC | E164: 1 | F164: 1979 | G164: N | H164: 2024-10-08T08:27:43 | I164: 2024-10-08T08:27:45 | J164: 2024-10-08T08:27:45 | K164: 1 | L164: 100
A165: 60942 | B165: F56-000081 | C165: 69 | D165: CC | E165: 1 | F165: 1969 | G165: N | H165: 2024-10-08T08:40:32 | I165: 2024-10-08T08:40:34 | J165: 2024-10-08T08:40:34 | K165: 1 | L165: 69
A166: 60943 | B166: F56-000082 | C166: 150 | D166: CC | E166: 1 | F166: 1989 | G166: N | H166: 2024-10-08T08:43:49 | I166: 2024-10-08T08:43:51 | J166: 2024-10-08T08:43:51 | K166: 1 | L166: 150
A167: 60944 | B167: F56-000083 | C167: 50 | D167: CC | E167: 1 | F167: 1980 | G167: N | H167: 2024-10-08T08:44:24 | I167: 2024-10-08T08:44:25 | J167: 2024-10-08T08:44:25 | K167: 1 | L167: 50
A168: 60945 | B168: F56-000084 | C168: 77 | D168: CC | E168: 1 | F168: 1977 | G168: N | H168: 2024-10-08T08:48:38 | I168: 2024-10-08T08:48:40 | J168: 2024-10-08T08:48:40 | K168: 1 | L168: 77
A169: 60946 | B169: F56-000085 | C169: 19.77 | D169: CC | E169: 1 | F169: 1977 | G169: N | H169: 2024-10-08T08:49:52 | I169: 2024-10-08T08:49:53 | J169: 2024-10-08T08:49:53 | K169: 1 | L169: 19.77
A170: 60947 | B170: F56-000086 | C170: 105 | D170: CC | E170: 1 | F170: 1964 | G170: N | H170: 2024-10-08T08:51:19 | I170: 2024-10-08T08:51:20 | J170: 2024-10-08T08:51:20 | K170: 1 | L170: 105
A171: 60948 | B171: F56-000087 | C171: 85 | D171: CC | E171: 1 | F171: 1985 | G171: N | H171: 2024-10-08T09:03:11 | I171: 2024-10-08T09:03:12 | J171: 2024-10-08T09:03:12 | K171: 1 | L171: 85
A172: 60949 | B172: F56-000088 | C172: 100 | D172: CC | E172: 1 | F172: 1965 | G172: N | H172: 2024-10-08T09:11:27 | I172: 2024-10-08T09:11:28 | J172: 2024-10-08T09:11:28 | K172: 1 | L172: 100
A173: 60950 | B173: F56-000089 | C173: 100 | D173: CC | E173: 1 | F173: 1966 | G173: N | H173: 2024-10-08T09:19:20 | I173: 2024-10-08T09:19:22 | J173: 2024-10-08T09:19:22 | K173: 1 | L173: 100
A174: 60951 | B174: F56-000090 | C174: 64 | D174: CC | E174: 6 | F174: 1964 | G174: N | H174: 2024-10-08T09:24:59 | I174: 2024-10-08T09:25:00 | J174: 2024-10-08T09:25:00 | K174: 1 | L174: 64
A175: 60952 | B175: F56-000091 | C175: 25 | D175: CC | E175: 1 | F175: 1957 | G175: N | H175: 2024-10-08T09:30:34 | I175: 2024-10-08T09:30:36 | J175: 2024-10-08T09:30:36 | K175: 1 | L175: 25
A176: 60953 | B176: F56-000092 | C176: 50 | D176: CC | E176: 1 | F176: 1968 | G176: N | H176: 2024-10-08T09:35:13 | I176: 2024-10-08T09:35:14 | J176: 2024-10-08T09:35:14 | K176: 1 | L176: 50
A177: 60954 | B177: F56-000093 | C177: 25 | D177: CC | E177: 1 | F177: 1979 | G177: N | H177: 2024-10-08T09:44:09 | I177: 2024-10-08T09:44:10 | J177: 2024-10-08T09:44:10 | K177: 1 | L177: 25
A178: 60955 | B178: F56-000094 | C178: 100 | D178: CC | E178: 1 | F178: 1975 | G178: N | H178: 2024-10-08T09:45:02 | I178: 2024-10-08T09:45:03 | J178: 2024-10-08T09:45:03 | K178: 1 | L178: 100
A179: 60956 | B179: F56-000095 | C179: 25 | D179: CC | E179: 1 | F179: 1969 | G179: N | H179: 2024-10-08T09:46:34 | I179: 2024-10-08T09:46:35 | J179: 2024-10-08T09:46:35 | K179: 1 | L179: 25
A180: 60957 | B180: F56-000096 | C180: 50 | D180: CC | E180: 1 | F180: 1964 | G180: N | H180: 2024-10-08T09:48:38 | I180: 2024-10-08T09:48:39 | J180: 2024-10-08T09:48:39 | K180: 1 | L180: 50
A181: 60958 | B181: F56-000097 | C181: 100 | D181: CC | E181: 1 | F181: 1975 | G181: N | H181: 2024-10-08T09:49:23 | I181: 2024-10-08T09:49:24 | J181: 2024-10-08T09:49:24 | K181: 1 | L181: 100
A182: 60959 | B182: F56-000098 | C182: 50 | D182: CC | E182: 1 | F182: 1957 | G182: N | H182: 2024-10-08T09:51:43 | I182: 2024-10-08T09:51:44 | J182: 2024-10-08T09:51:44 | K182: 1 | L182: 50
A183: 60960 | B183: F56-000099 | C183: 77 | D183: CC | E183: 1 | F183: 1977 | G183: N | H183: 2024-10-08T10:08:49 | I183: 2024-10-08T10:08:51 | J183: 2024-10-08T10:08:51 | K183: 1 | L183: 77
A184: 60961 | B184: F56-000100 | C184: 100 | D184: CC | E184: 6 | F184: 1979 | G184: N | H184: 2024-10-08T10:11:46 | I184: 2024-10-08T10:11:47 | J184: 2024-10-08T10:11:47 | K184: 1 | L184: 100
A185: 60962 | B185: F56-000101 | C185: 75 | D185: CC | E185: 1 | F185: 1966 | G185: N | H185: 2024-10-08T10:20:08 | I185: 2024-10-08T10:20:10 | J185: 2024-10-08T10:20:10 | K185: 1 | L185: 75
A186: 60963 | B186: F56-000102 | C186: 100 | D186: CC | E186: 6 | F186: 1966 | G186: N | H186: 2024-10-08T10:21:35 | I186: 2024-10-08T10:21:37 | J186: 2024-10-08T10:21:37 | K186: 1 | L186: 100
A187: 60964 | B187: F56-000103 | C187: 100 | D187: CC | E187: 1 | F187: 1958 | G187: N | H187: 2024-10-08T10:33:28 | I187: 2024-10-08T10:33:30 | J187: 2024-10-08T10:33:30 | K187: 1 | L187: 100
A188: 60965 | B188: F56-000104 | C188: 50 | D188: CC | E188: 1 | F188: 1963 | G188: N | H188: 2024-10-08T10:34:16 | I188: 2024-10-08T10:34:17 | J188: 2024-10-08T10:34:17 | K188: 1 | L188: 50
A189: 60966 | B189: F56-000105 | C189: 25 | D189: CC | E189: 1 | F189: 1966 | G189: N | H189: 2024-10-08T10:43:19 | I189: 2024-10-08T10:43:20 | J189: 2024-10-08T10:43:20 | K189: 1 | L189: 25
A190: 60967 | B190: F56-000106 | C190: 50 | D190: CC | E190: 1 | F190: 1958 | G190: N | H190: 2024-10-08T10:43:42 | I190: 2024-10-08T10:43:43 | J190: 2024-10-08T10:43:43 | K190: 1 | L190: 50
A191: 60968 | B191: F56-000107 | C191: 50 | D191: CC | E191: 1 | F191: 1966 | G191: N | H191: 2024-10-08T10:48:50 | I191: 2024-10-08T10:48:51 | J191: 2024-10-08T10:48:51 | K191: 1 | L191: 50
A192: 60969 | B192: F56-000108 | C192: 100 | D192: CC | E192: 1 | F192: 1966 | G192: N | H192: 2024-10-08T10:56:29 | I192: 2024-10-08T10:56:30 | J192: 2024-10-08T10:56:30 | K192: 1 | L192: 100
A193: 60970 | B193: F56-000109 | C193: 33 | D193: CC | E193: 1 | F193: 1966 | G193: N | H193: 2024-10-08T10:56:59 | I193: 2024-10-08T10:57:00 | J193: 2024-10-08T10:57:00 | K193: 1 | L193: 33
A194: 60971 | B194: F56-000110 | C194: 200 | D194: CC | E194: 1 | F194: 1969 | G194: N | H194: 2024-10-08T11:03:18 | I194: 2024-10-08T11:03:19 | J194: 2024-10-08T11:03:19 | K194: 1 | L194: 200
A195: 60972 | B195: F56-000111 | C195: 50 | D195: CC | E195: 6 | F195: 1966 | G195: N | H195: 2024-10-08T11:07:08 | I195: 2024-10-08T11:07:09 | J195: 2024-10-08T11:07:09 | K195: 1 | L195: 50
A196: 60973 | B196: F56-000112 | C196: 50 | D196: CC | E196: 1 | F196: 1969 | G196: N | H196: 2024-10-08T11:07:49 | I196: 2024-10-08T11:07:50 | J196: 2024-10-08T11:07:50 | K196: 1 | L196: 50
A197: 60974 | B197: F56-000113 | C197: 50 | D197: CC | E197: 2 | F197: 2015 | G197: N | H197: 2024-10-08T11:12:01 | I197: 2024-10-08T11:12:02 | J197: 2024-10-08T11:12:02 | K197: 1 | L197: 50
A198: 60975 | B198: F56-000114 | C198: 50 | D198: CC | E198: 1 | F198: 1966 | G198: N | H198: 2024-10-08T11:23:26 | I198: 2024-10-08T11:23:27 | J198: 2024-10-08T11:23:27 | K198: 1 | L198: 50
A199: 60976 | B199: F56-000115 | C199: 50 | D199: CC | E199: 1 | F199: 1967 | G199: N | H199: 2024-10-08T11:25:56 | I199: 2024-10-08T11:25:57 | J199: 2024-10-08T11:25:57 | K199: 1 | L199: 50
A200: 60977 | B200: F56-000116 | C200: 100 | D200: CC | E200: 1 | F200: 1966 | G200: N | H200: 2024-10-08T11:30:11 | I200: 2024-10-08T11:30:12 | J200: 2024-10-08T11:30:12 | K200: 1 | L200: 100
... 381 more rows

Sheet Sheet11 (hidden)
A1: 1
A2: 2
A3: 3
A4: 4
A5: 5
A6: 6
A7: 7
A8: 8
A9: 9
A10: 10
A11: 11
A12: 12
A13: 13
A14: 14
A15: 15
A16: 16
A17: 17
A18: 18
A19: 19
A20: 20
A21: 21
A22: 22
A23: 23
A24: 24
A25: 25
A26: 26
A27: 27
A28: 28
A29: 29
A30: 30
A31: 31
A32: 32
A33: 33
A34: 34
A35: 35
A36: 36
A37: 37
A38: 38
A39: 39
A40: 40
A41: 41
A42: 42
A43: 43
A44: 44
A45: 45
A46: 46
A47: 47
A48: 48
A49: 49
A50: 50
A51: 51
A52: 52
A53: 53
A54: 54
A55: 55
A56: 56
A57: 57
A58: 58
A59: 59
A60: 60
A61: 61
A62: 62
